Workbook

Sheet Template 30 students
B2: Student | C2: Time 1 | D2: Time 2 | E2: Effect size
B3: Julia | C3: 44 | D3: 48 | E3: =IFERROR(IF(COUNTA(B3,C3,D3)=3,(D3-C3)/$D$36,""),"") -> 0.2801066657
B4: Julio | C4: 57 | D4: 66 | E4: 0.6302399978
B5: Kate | C5: 37 | D5: 52 | E5: 1.050399996
B6: Megan | C6: 82 | D6: 78 | E6: -0.2801066657
B7: Jennifer | C7: 39 | D7: 62 | E7: 1.610613328
B8: Matt | C8: 46 | D8: 64 | E8: 1.260479996
B9: Yun | C9: 57 | D9: 73 | E9: 1.120426663
B10: Pablo | C10: 63 | D10: 69 | E10: 0.4201599985
B11: Robert | C11: 68 | D11: 71 | E11: 0.2100799993
B12: Max | C12: 29 | D12: 35 | E12: 0.4201599985
B13: Rodriguez | C13: 67 | D13: 68 | E13: 0.07002666642
B14: Student12
B15: Student13
B16: Student14
B17: Student15
B18: Student16
B19: Student17
B20: Student18
B21: Student19
B22: Student20
B23: Student21
B24: Student22
B25: Student23
B26: Student24
B27: Student25
B28: Student26
B29: Student27
B30: Student28
B31: Student29
B32: Student30
B34: Average | C34: =AVERAGE(C3:C33) -> 53.54545455 | D34: =AVERAGE(D3:D33) -> 62.36363636 | E34: =(D34-C34)/$D$36 -> 0.6175078766
B35: STDEV | C35: =STDEV(C3:C33) -> 15.96473386 | D35: =STDEV(D3:D33) -> 12.5958146
B36: AV Stdev | D36: =AVERAGE(C35:D35) -> 14.28027423

Sheet Template 50 students
B2: Student | C2: Time 1 | D2: Time 2 | E2: Effect size
B3: Student1 | C3: 66 | D3: 70 | E3: =IFERROR(IF(COUNTA(B3,C3,D3)=3,(D3-C3)/$D$57,""),"") -> 0.1566951393
B4: Student2 | C4: 83 | D4: 84 | E4: 0.03917378482
B5: Student3 | C5: 47 | D5: 100 | E5: 2.076210595
B6: Student4 | C6: 87 | D6: 38 | E6: -1.919515456
B7: Student5 | C7: 99 | D7: 98 | E7: -0.03917378482
B8: Student6 | C8: 94 | D8: 61 | E8: -1.292734899
B9: Student7 | C9: 96 | D9: 71 | E9: -0.9793446205
B10: Student8 | C10: 94 | D10: 85 | E10: -0.3525640634
B11: Student9 | C11: 38 | D11: 41 | E11: 0.1175213545
B12: Student10 | C12: 79 | D12: 90 | E12: 0.430911633
B13: Student11 | C13: 86 | D13: 79 | E13: -0.2742164937
B14: Student12 | C14: 68 | D14: 11 | E14: -2.232905735
B15: Student13 | C15: 76 | D15: 67 | E15: -0.3525640634
B16: Student14 | C16: 54 | D16: 40 | E16: -0.5484329875
B17: Student15 | C17: 21 | D17: 26 | E17: 0.1958689241
B18: Student16 | C18: 99 | D18: 80 | E18: -0.7443019116
B19: Student17 | C19: 86 | D19: 35 | E19: -1.997863026
B20: Student18 | C20: 58 | D20: 20 | E20: -1.488603823
B21: Student19 | C21: 18 | D21: 88 | E21: 2.742164937
B22: Student20 | C22: 21 | D22: 56 | E22: 1.371082469
B23: Student21 | C23: 56 | D23: 77 | E23: 0.8226494812
B24: Student22 | C24: 50 | D24: 68 | E24: 0.7051281268
B25: Student23 | C25: 26 | D25: 39 | E25: 0.5092592027
B26: Student24 | C26: 95 | D26: 21 | E26: -2.898860077
B27: Student25 | C27: 22 | D27: 57 | E27: 1.371082469
B28: Student26 | C28: 48 | D28: 82 | E28: 1.331908684
B29: Student27 | C29: 70 | D29: 23 | E29: -1.841167887
B30: Student28 | C30: 80 | D30: 28 | E30: -2.037036811
B31: Student29 | C31: 63 | D31: 27 | E31: -1.410256254
B32: Student30 | C32: 59 | D32: 11 | E32: -1.880341671
B33: Student31 | C33: 68 | D33: 43 | E33: -0.9793446205
B34: Student32 | C34: 63 | D34: 64 | E34: 0.03917378482
B35: Student33 | C35: 45 | D35: 62 | E35: =IFERROR(IF(COUNTA(B35,C35,D35)=3,(D35-C35)/$D$57,""),"") -> 0.6659543419
B36: Student34 | C36: 50 | D36: 39 | E36: -0.430911633
B37: Student35 | C37: 15 | D37: 86 | E37: 2.781338722
B38: Student36 | C38: 27 | D38: 39 | E38: 0.4700854178
B39: Student37 | C39: 61 | D39: 47 | E39: -0.5484329875
B40: Student38 | C40: 21 | D40: 22 | E40: 0.03917378482
B41: Student39 | C41: 59 | D41: 52 | E41: -0.2742164937
B42: Student40 | C42: 45 | D42: 17 | E42: -1.096865975
B43: Student41 | C43: 22 | D43: 82 | E43: 2.350427089
B44: Student42 | C44: 25 | D44: 90 | E44: 2.546296013
B45: Student43 | C45: 68 | D45: 81 | E45: 0.5092592027
B46: Student44 | C46: 76 | D46: 61 | E46: -0.5876067723
B47: Student45 | C47: 26 | D47: 63 | E47: 1.449430038
B48: Student46 | C48: 57 | D48: 81 | E48: 0.9401708357
B49: Student47 | C49: 40 | D49: 14 | E49: -1.018518405
B50: Student48 | C50: 75 | D50: 90 | E50: 0.5876067723
B51: Student49 | C51: 40 | D51: 38 | E51: -0.07834756964
B52: Student50 | C52: 40 | D52: 39 | E52: -0.03917378482
B55: Average | C55: =AVERAGE(Table13[Time 1]) -> 57.24 | D55: =AVERAGE(Table13[Time 2]) -> 55.66 | E55: =(D55-C55)/$D$57 -> -0.06189458002
B56: STDEV | C56: =STDEV(Table13[Time 1]) -> 24.96083463 | D56: =STDEV(Table13[Time 2]) -> 26.0937165
B57: AV Stdev | D57: =AVERAGE(C56:D56) -> 25.52727556

Sheet Template 100 students
B2: Student | C2: Time 1 | D2: Time 2 | E2: Effect size
B3: Student1 | C3: 21 | D3: 22 | E3: =IFERROR(IF(COUNTA(B3,C3,D3)=3,(D3-C3)/$D$106,""),"") -> 0.1680943596
B4: Student2 | C4: 21 | D4: 33 | E4: 2.017132315
B5: Student3 | C5: 30 | D5: 39 | E5: 1.512849236
B6: Student4 | C6: 36 | D6: 34 | E6: -0.3361887192
B7: Student5 | C7: 29 | D7: 26 | E7: -0.5042830788
B8: Student6 | C8: 24 | D8: 20 | E8: -0.6723774384
B9: Student7 | C9: 28 | D9: 28 | E9: 0
B10: Student8 | C10: 22 | D10: 30 | E10: 1.344754877
B11: Student9 | C11: 29 | D11: 21 | E11: -1.344754877
B12: Student10 | C12: 32 | D12: 27 | E12: -0.840471798
B13: Student11 | C13: 22 | D13: 27 | E13: 0.840471798
B14: Student12 | C14: 28 | D14: 23 | E14: -0.840471798
B15: Student13 | C15: 39 | D15: 33 | E15: -1.008566158
B16: Student14 | C16: 32 | D16: 28 | E16: -0.6723774384
B17: Student15 | C17: 24 | D17: 25 | E17: 0.1680943596
B18: Student16 | C18: 29 | D18: 38 | E18: 1.512849236
B19: Student17 | C19: 23 | D19: 24 | E19: 0.1680943596
B20: Student18 | C20: 30 | D20: 31 | E20: 0.1680943596
B21: Student19 | C21: 22 | D21: 24 | E21: 0.3361887192
B22: Student20 | C22: 24 | D22: 28 | E22: 0.6723774384
B23: Student21 | C23: 33 | D23: 33 | E23: 0
B24: Student22 | C24: 38 | D24: 28 | E24: -1.680943596
B25: Student23 | C25: 25 | D25: 25 | E25: 0
B26: Student24 | C26: 21 | D26: 20 | E26: -0.1680943596
B27: Student25 | C27: 39 | D27: 34 | E27: -0.840471798
B28: Student26 | C28: 34 | D28: 31 | E28: -0.5042830788
B29: Student27 | C29: 37 | D29: 28 | E29: -1.512849236
B30: Student28 | C30: 21 | D30: 31 | E30: 1.680943596
B31: Student29 | C31: 22 | D31: 32 | E31: 1.680943596
B32: Student30 | C32: 25 | D32: 29 | E32: 0.6723774384
B33: Student31 | C33: 36 | D33: 30 | E33: -1.008566158
B34: Student32 | C34: 25 | D34: 22 | E34: -0.5042830788
B35: Student33 | C35: 36 | D35: 29 | E35: =IFERROR(IF(COUNTA(B35,C35,D35)=3,(D35-C35)/$D$106,""),"") -> -1.176660517
B36: Student34 | C36: 22 | D36: 39 | E36: 2.857604113
B37: Student35 | C37: 25 | D37: 23 | E37: -0.3361887192
B38: Student36 | C38: 33 | D38: 33 | E38: 0
B39: Student37 | C39: 26 | D39: 39 | E39: 2.185226675
B40: Student38 | C40: 26 | D40: 21 | E40: -0.840471798
B41: Student39 | C41: 36 | D41: 33 | E41: -0.5042830788
B42: Student40 | C42: 35 | D42: 31 | E42: -0.6723774384
B43: Student41 | C43: 40 | D43: 26 | E43: -2.353321034
B44: Student42 | C44: 21 | D44: 35 | E44: 2.353321034
B45: Student43 | C45: 25 | D45: 20 | E45: -0.840471798
B46: Student44 | C46: 31 | D46: 33 | E46: 0.3361887192
B47: Student45 | C47: 33 | D47: 23 | E47: -1.680943596
B48: Student46 | C48: 33 | D48: 35 | E48: 0.3361887192
B49: Student47 | C49: 27 | D49: 31 | E49: 0.6723774384
B50: Student48 | C50: 34 | D50: 25 | E50: -1.512849236
B51: Student49 | C51: 40 | D51: 27 | E51: -2.185226675
B52: Student50 | C52: 24 | D52: 21 | E52: -0.5042830788
B53: Student51 | C53: 40 | D53: 22 | E53: -3.025698473
B54: Student52 | C54: 39 | D54: 25 | E54: -2.353321034
B55: Student53 | C55: 31 | D55: 22 | E55: -1.512849236
B56: Student54 | C56: 33 | D56: 24 | E56: -1.512849236
B57: Student55 | C57: 27 | D57: 35 | E57: 1.344754877
B58: Student56 | C58: 40 | D58: 23 | E58: -2.857604113
B59: Student57 | C59: 31 | D59: 34 | E59: 0.5042830788
B60: Student58 | C60: 28 | D60: 39 | E60: 1.849037956
B61: Student59 | C61: 24 | D61: 24 | E61: 0
B62: Student60 | C62: 39 | D62: 28 | E62: -1.849037956
B63: Student61 | C63: 33 | D63: 32 | E63: -0.1680943596
B64: Student62 | C64: 33 | D64: 39 | E64: 1.008566158
B65: Student63 | C65: 40 | D65: 25 | E65: -2.521415394
B66: Student64 | C66: 36 | D66: 25 | E66: -1.849037956
B67: Student65 | C67: 20 | D67: 30 | E67: =IFERROR(IF(COUNTA(B67,C67,D67)=3,(D67-C67)/$D$106,""),"") -> 1.680943596
B68: Student66 | C68: 29 | D68: 31 | E68: 0.3361887192
B69: Student67 | C69: 28 | D69: 31 | E69: 0.5042830788
B70: Student68 | C70: 38 | D70: 31 | E70: -1.176660517
B71: Student69 | C71: 37 | D71: 30 | E71: -1.176660517
B72: Student70 | C72: 26 | D72: 35 | E72: 1.512849236
B73: Student71 | C73: 21 | D73: 34 | E73: 2.185226675
B74: Student72 | C74: 39 | D74: 28 | E74: -1.849037956
B75: Student73 | C75: 22 | D75: 31 | E75: 1.512849236
B76: Student74 | C76: 26 | D76: 36 | E76: 1.680943596
B77: Student75 | C77: 23 | D77: 29 | E77: 1.008566158
B78: Student76 | C78: 31 | D78: 36 | E78: 0.840471798
B79: Student77 | C79: 20 | D79: 32 | E79: 2.017132315
B80: Student78 | C80: 32 | D80: 40 | E80: 1.344754877
B81: Student79 | C81: 38 | D81: 38 | E81: 0
B82: Student80 | C82: 27 | D82: 40 | E82: 2.185226675
B83: Student81 | C83: 31 | D83: 26 | E83: -0.840471798
B84: Student82 | C84: 30 | D84: 28 | E84: -0.3361887192
B85: Student83 | C85: 27 | D85: 37 | E85: 1.680943596
B86: Student84 | C86: 31 | D86: 30 | E86: -0.1680943596
B87: Student85 | C87: 24 | D87: 37 | E87: 2.185226675
B88: Student86 | C88: 21 | D88: 21 | E88: 0
B89: Student87 | C89: 22 | D89: 22 | E89: 0
B90: Student88 | C90: 40 | D90: 30 | E90: -1.680943596
B91: Student89 | C91: 40 | D91: 39 | E91: -0.1680943596
B92: Student90 | C92: 29 | D92: 32 | E92: 0.5042830788
B93: Student91 | C93: 34 | D93: 32 | E93: -0.3361887192
B94: Student92 | C94: 22 | D94: 26 | E94: 0.6723774384
B95: Student93 | C95: 32 | D95: 36 | E95: 0.6723774384
B96: Student94 | C96: 21 | D96: 37 | E96: 2.689509754
B97: Student95 | C97: 21 | D97: 20 | E97: -0.1680943596
B98: Student96 | C98: 29 | D98: 22 | E98: -1.176660517
B99: Student97 | C99: 28 | D99: 37 | E99: =IFERROR(IF(COUNTA(B99,C99,D99)=3,(D99-C99)/$D$106,""),"") -> 1.512849236
B100: Student98 | C100: 36 | D100: 22 | E100: =IFERROR(IF(COUNTA(B100,C100,D100)=3,(D100-C100)/$D$106,""),"") -> -2.353321034
B101: Student99 | C101: 32 | D101: 37 | E101: =IFERROR(IF(COUNTA(B101,C101,D101)=3,(D101-C101)/$D$106,""),"") -> 0.840471798
B102: Student100 | C102: 30 | D102: 38 | E102: =IFERROR(IF(COUNTA(B102,C102,D102)=3,(D102-C102)/$D$106,""),"") -> 1.344754877
B104: Average | C104: =AVERAGE(C3:C102) -> 29.59 | D104: =AVERAGE(D3:D102) -> 29.66 | E104: =(D104-C104)/$D$106 -> 0.01176660517
B105: STDEV | C105: =STDEV(C3:C102) -> 6.164569668 | D105: =STDEV(D3:D102) -> 5.733509511
B106: AV Stdev | D106: =AVERAGE(C105:D105) -> 5.94903959

Sheet Calculations (hidden)
A1: 30 students | B1: ='Template 30 students'!E2 -> Effect size | C1: ='Template 30 students'!D2 -> Time 2 | D1: Average Achievement | E1: Average effect size | G1: 50 students | H1: effect size | I1: Time 2 | J1: Average Achievement | K1: Average effect size | M1: 100 students | N1: Effect size | O1: Time 2 | P1: Average Achievement | Q1: Average effect size
A2: =IF(COUNTA('Template 30 students'!B3)=1,('Template 30 students'!B3),"") -> Julia | B2: =IF(COUNTA('Template 30 students'!E3)=1,('Template 30 students'!E3),"") -> 0.2801066657 | C2: =IF(COUNTA('Template 30 students'!D3)=1,('Template 30 students'!D3),"") -> 48 | D2: =IF(COUNTA('Template 30 students'!E3,'Template 30 students'!D3)=2,('Template 30 students'!$D$34),"") -> 62.36363636 | E2: =IF(COUNTA('Template 30 students'!E3,'Template 30 students'!D3)=2,AVERAGE($B$2:$B$31),"") -> 0.6175078766 | G2: =IF(COUNTA('Template 50 students'!B3)=1,('Template 50 students'!B3),"") -> Student1 | H2: =IF(COUNTA('Template 50 students'!E3)=1,('Template 50 students'!E3),"") -> 0.1566951393 | I2: =IF(COUNTA('Template 50 students'!D3)=1,('Template 50 students'!D3),"") -> 70 | J2: =IF(COUNTA('Template 50 students'!E3,'Template 50 students'!D3)=2,('Template 50 students'!$D$55),"") -> 55.66 | K2: =IF(COUNTA('Template 50 students'!E3,'Template 50 students'!D3)=2,('Template 50 students'!$E$55),"") -> -0.06189458002 | N2: =IF(COUNTA('Template 100 students'!E3)=1,('Template 100 students'!E3),"") -> 0.1680943596 | O2: =IF(COUNTA('Template 100 students'!D3)=1,('Template 100 students'!D3),"") -> 22 | P2: =IF(COUNTA('Template 100 students'!E3,'Template 100 students'!D3)=2,('Template 100 students'!$D$55),"") -> 22 | Q2: =IF(COUNTA('Template 100 students'!E3,'Template 100 students'!D3)=2,('Template 100 students'!$E$104),"") -> 0.01176660517
A3: =IF(COUNTA('Template 30 students'!B4)=1,('Template 30 students'!B4),"") -> Julio | B3: =IF(COUNTA('Template 30 students'!E4)=1,('Template 30 students'!E4),"") -> 0.6302399978 | C3: =IF(COUNTA('Template 30 students'!D4)=1,('Template 30 students'!D4),"") -> 66 | D3: =IF(COUNTA('Template 30 students'!E4,'Template 30 students'!D4)=2,('Template 30 students'!$D$34),"") -> 62.36363636 | E3: =IF(COUNTA('Template 30 students'!E4,'Template 30 students'!D4)=2,AVERAGE($B$2:$B$31),"") -> 0.6175078766 | G3: =IF(COUNTA('Template 50 students'!B4)=1,('Template 50 students'!B4),"") -> Student2 | H3: =IF(COUNTA('Template 50 students'!E4)=1,('Template 50 students'!E4),"") -> 0.03917378482 | I3: =IF(COUNTA('Template 50 students'!D4)=1,('Template 50 students'!D4),"") -> 84 | J3: =IF(COUNTA('Template 50 students'!E4,'Template 50 students'!D4)=2,('Template 50 students'!$D$55),"") -> 55.66 | K3: =IF(COUNTA('Template 50 students'!E4,'Template 50 students'!D4)=2,('Template 50 students'!$E$55),"") -> -0.06189458002 | N3: ='Template 100 students'!E4 -> 2.017132315 | O3: =IF(COUNTA('Template 100 students'!D4)=1,('Template 100 students'!D4),"") -> 33 | P3: =IF(COUNTA('Template 100 students'!E4,'Template 100 students'!D4)=2,('Template 100 students'!$D$55),"") -> 22 | Q3: =IF(COUNTA('Template 100 students'!E4,'Template 100 students'!D4)=2,('Template 100 students'!$E$104),"") -> 0.01176660517
A4: =IF(COUNTA('Template 30 students'!B5)=1,('Template 30 students'!B5),"") -> Kate | B4: =IF(COUNTA('Template 30 students'!E5)=1,('Template 30 students'!E5),"") -> 1.050399996 | C4: =IF(COUNTA('Template 30 students'!D5)=1,('Template 30 students'!D5),"") -> 52 | D4: =IF(COUNTA('Template 30 students'!E5,'Template 30 students'!D5)=2,('Template 30 students'!$D$34),"") -> 62.36363636 | E4: =IF(COUNTA('Template 30 students'!E5,'Template 30 students'!D5)=2,AVERAGE($B$2:$B$31),"") -> 0.6175078766 | G4: =IF(COUNTA('Template 50 students'!B5)=1,('Template 50 students'!B5),"") -> Student3 | H4: =IF(COUNTA('Template 50 students'!E5)=1,('Template 50 students'!E5),"") -> 2.076210595 | I4: =IF(COUNTA('Template 50 students'!D5)=1,('Template 50 students'!D5),"") -> 100 | J4: =IF(COUNTA('Template 50 students'!E5,'Template 50 students'!D5)=2,('Template 50 students'!$D$55),"") -> 55.66 | K4: =IF(COUNTA('Template 50 students'!E5,'Template 50 students'!D5)=2,('Template 50 students'!$E$55),"") -> -0.06189458002 | N4: ='Template 100 students'!E5 -> 1.512849236 | O4: =IF(COUNTA('Template 100 students'!D5)=1,('Template 100 students'!D5),"") -> 39 | P4: =IF(COUNTA('Template 100 students'!E5,'Template 100 students'!D5)=2,('Template 100 students'!$D$55),"") -> 22 | Q4: =IF(COUNTA('Template 100 students'!E5,'Template 100 students'!D5)=2,('Template 100 students'!$E$104),"") -> 0.01176660517
A5: =IF(COUNTA('Template 30 students'!B6)=1,('Template 30 students'!B6),"") -> Megan | B5: =IF(COUNTA('Template 30 students'!E6)=1,('Template 30 students'!E6),"") -> -0.2801066657 | C5: =IF(COUNTA('Template 30 students'!D6)=1,('Template 30 students'!D6),"") -> 78 | D5: =IF(COUNTA('Template 30 students'!E6,'Template 30 students'!D6)=2,('Template 30 students'!$D$34),"") -> 62.36363636 | E5: =IF(COUNTA('Template 30 students'!E6,'Template 30 students'!D6)=2,AVERAGE($B$2:$B$31),"") -> 0.6175078766 | G5: =IF(COUNTA('Template 50 students'!B6)=1,('Template 50 students'!B6),"") -> Student4 | H5: =IF(COUNTA('Template 50 students'!E6)=1,('Template 50 students'!E6),"") -> -1.919515456 | I5: =IF(COUNTA('Template 50 students'!D6)=1,('Template 50 students'!D6),"") -> 38 | J5: =IF(COUNTA('Template 50 students'!E6,'Template 50 students'!D6)=2,('Template 50 students'!$D$55),"") -> 55.66 | K5: =IF(COUNTA('Template 50 students'!E6,'Template 50 students'!D6)=2,('Template 50 students'!$E$55),"") -> -0.06189458002 | N5: ='Template 100 students'!E6 -> -0.3361887192 | O5: =IF(COUNTA('Template 100 students'!D6)=1,('Template 100 students'!D6),"") -> 34 | P5: =IF(COUNTA('Template 100 students'!E6,'Template 100 students'!D6)=2,('Template 100 students'!$D$55),"") -> 22 | Q5: =IF(COUNTA('Template 100 students'!E6,'Template 100 students'!D6)=2,('Template 100 students'!$E$104),"") -> 0.01176660517
A6: =IF(COUNTA('Template 30 students'!B7)=1,('Template 30 students'!B7),"") -> Jennifer | B6: =IF(COUNTA('Template 30 students'!E7)=1,('Template 30 students'!E7),"") -> 1.610613328 | C6: =IF(COUNTA('Template 30 students'!D7)=1,('Template 30 students'!D7),"") -> 62 | D6: =IF(COUNTA('Template 30 students'!E7,'Template 30 students'!D7)=2,('Template 30 students'!$D$34),"") -> 62.36363636 | E6: =IF(COUNTA('Template 30 students'!E7,'Template 30 students'!D7)=2,AVERAGE($B$2:$B$31),"") -> 0.6175078766 | G6: =IF(COUNTA('Template 50 students'!B7)=1,('Template 50 students'!B7),"") -> Student5 | H6: =IF(COUNTA('Template 50 students'!E7)=1,('Template 50 students'!E7),"") -> -0.03917378482 | I6: =IF(COUNTA('Template 50 students'!D7)=1,('Template 50 students'!D7),"") -> 98 | J6: =IF(COUNTA('Template 50 students'!E7,'Template 50 students'!D7)=2,('Template 50 students'!$D$55),"") -> 55.66 | K6: =IF(COUNTA('Template 50 students'!E7,'Template 50 students'!D7)=2,('Template 50 students'!$E$55),"") -> -0.06189458002 | N6: ='Template 100 students'!E7 -> -0.5042830788 | O6: =IF(COUNTA('Template 100 students'!D7)=1,('Template 100 students'!D7),"") -> 26 | P6: =IF(COUNTA('Template 100 students'!E7,'Template 100 students'!D7)=2,('Template 100 students'!$D$55),"") -> 22 | Q6: =IF(COUNTA('Template 100 students'!E7,'Template 100 students'!D7)=2,('Template 100 students'!$E$104),"") -> 0.01176660517
A7: =IF(COUNTA('Template 30 students'!B8)=1,('Template 30 students'!B8),"") -> Matt | B7: =IF(COUNTA('Template 30 students'!E8)=1,('Template 30 students'!E8),"") -> 1.260479996 | C7: =IF(COUNTA('Template 30 students'!D8)=1,('Template 30 students'!D8),"") -> 64 | D7: =IF(COUNTA('Template 30 students'!E8,'Template 30 students'!D8)=2,('Template 30 students'!$D$34),"") -> 62.36363636 | E7: =IF(COUNTA('Template 30 students'!E8,'Template 30 students'!D8)=2,AVERAGE($B$2:$B$31),"") -> 0.6175078766 | G7: =IF(COUNTA('Template 50 students'!B8)=1,('Template 50 students'!B8),"") -> Student6 | H7: =IF(COUNTA('Template 50 students'!E8)=1,('Template 50 students'!E8),"") -> -1.292734899 | I7: =IF(COUNTA('Template 50 students'!D8)=1,('Template 50 students'!D8),"") -> 61 | J7: =IF(COUNTA('Template 50 students'!E8,'Template 50 students'!D8)=2,('Template 50 students'!$D$55),"") -> 55.66 | K7: =IF(COUNTA('Template 50 students'!E8,'Template 50 students'!D8)=2,('Template 50 students'!$E$55),"") -> -0.06189458002 | N7: ='Template 100 students'!E8 -> -0.6723774384 | O7: =IF(COUNTA('Template 100 students'!D8)=1,('Template 100 students'!D8),"") -> 20 | P7: =IF(COUNTA('Template 100 students'!E8,'Template 100 students'!D8)=2,('Template 100 students'!$D$55),"") -> 22 | Q7: =IF(COUNTA('Template 100 students'!E8,'Template 100 students'!D8)=2,('Template 100 students'!$E$104),"") -> 0.01176660517
A8: =IF(COUNTA('Template 30 students'!B9)=1,('Template 30 students'!B9),"") -> Yun | B8: =IF(COUNTA('Template 30 students'!E9)=1,('Template 30 students'!E9),"") -> 1.120426663 | C8: =IF(COUNTA('Template 30 students'!D9)=1,('Template 30 students'!D9),"") -> 73 | D8: =IF(COUNTA('Template 30 students'!E9,'Template 30 students'!D9)=2,('Template 30 students'!$D$34),"") -> 62.36363636 | E8: =IF(COUNTA('Template 30 students'!E9,'Template 30 students'!D9)=2,AVERAGE($B$2:$B$31),"") -> 0.6175078766 | G8: =IF(COUNTA('Template 50 students'!B9)=1,('Template 50 students'!B9),"") -> Student7 | H8: =IF(COUNTA('Template 50 students'!E9)=1,('Template 50 students'!E9),"") -> -0.9793446205 | I8: =IF(COUNTA('Template 50 students'!D9)=1,('Template 50 students'!D9),"") -> 71 | J8: =IF(COUNTA('Template 50 students'!E9,'Template 50 students'!D9)=2,('Template 50 students'!$D$55),"") -> 55.66 | K8: =IF(COUNTA('Template 50 students'!E9,'Template 50 students'!D9)=2,('Template 50 students'!$E$55),"") -> -0.06189458002 | N8: ='Template 100 students'!E9 -> 0 | O8: =IF(COUNTA('Template 100 students'!D9)=1,('Template 100 students'!D9),"") -> 28 | P8: =IF(COUNTA('Template 100 students'!E9,'Template 100 students'!D9)=2,('Template 100 students'!$D$55),"") -> 22 | Q8: =IF(COUNTA('Template 100 students'!E9,'Template 100 students'!D9)=2,('Template 100 students'!$E$104),"") -> 0.01176660517
A9: =IF(COUNTA('Template 30 students'!B10)=1,('Template 30 students'!B10),"") -> Pablo | B9: =IF(COUNTA('Template 30 students'!E10)=1,('Template 30 students'!E10),"") -> 0.4201599985 | C9: =IF(COUNTA('Template 30 students'!D10)=1,('Template 30 students'!D10),"") -> 69 | D9: =IF(COUNTA('Template 30 students'!E10,'Template 30 students'!D10)=2,('Template 30 students'!$D$34),"") -> 62.36363636 | E9: =IF(COUNTA('Template 30 students'!E10,'Template 30 students'!D10)=2,AVERAGE($B$2:$B$31),"") -> 0.6175078766 | G9: =IF(COUNTA('Template 50 students'!B10)=1,('Template 50 students'!B10),"") -> Student8 | H9: =IF(COUNTA('Template 50 students'!E10)=1,('Template 50 students'!E10),"") -> -0.3525640634 | I9: =IF(COUNTA('Template 50 students'!D10)=1,('Template 50 students'!D10),"") -> 85 | J9: =IF(COUNTA('Template 50 students'!E10,'Template 50 students'!D10)=2,('Template 50 students'!$D$55),"") -> 55.66 | K9: =IF(COUNTA('Template 50 students'!E10,'Template 50 students'!D10)=2,('Template 50 students'!$E$55),"") -> -0.06189458002 | N9: ='Template 100 students'!E10 -> 1.344754877 | O9: =IF(COUNTA('Template 100 students'!D10)=1,('Template 100 students'!D10),"") -> 30 | P9: =IF(COUNTA('Template 100 students'!E10,'Template 100 students'!D10)=2,('Template 100 students'!$D$55),"") -> 22 | Q9: =IF(COUNTA('Template 100 students'!E10,'Template 100 students'!D10)=2,('Template 100 students'!$E$104),"") -> 0.01176660517
A10: =IF(COUNTA('Template 30 students'!B11)=1,('Template 30 students'!B11),"") -> Robert | B10: =IF(COUNTA('Template 30 students'!E11)=1,('Template 30 students'!E11),"") -> 0.2100799993 | C10: =IF(COUNTA('Template 30 students'!D11)=1,('Template 30 students'!D11),"") -> 71 | D10: =IF(COUNTA('Template 30 students'!E11,'Template 30 students'!D11)=2,('Template 30 students'!$D$34),"") -> 62.36363636 | E10: =IF(COUNTA('Template 30 students'!E11,'Template 30 students'!D11)=2,AVERAGE($B$2:$B$31),"") -> 0.6175078766 | G10: =IF(COUNTA('Template 50 students'!B11)=1,('Template 50 students'!B11),"") -> Student9 | H10: =IF(COUNTA('Template 50 students'!E11)=1,('Template 50 students'!E11),"") -> 0.1175213545 | I10: =IF(COUNTA('Template 50 students'!D11)=1,('Template 50 students'!D11),"") -> 41 | J10: =IF(COUNTA('Template 50 students'!E11,'Template 50 students'!D11)=2,('Template 50 students'!$D$55),"") -> 55.66 | K10: =IF(COUNTA('Template 50 students'!E11,'Template 50 students'!D11)=2,('Template 50 students'!$E$55),"") -> -0.06189458002 | N10: ='Template 100 students'!E11 -> -1.344754877 | O10: =IF(COUNTA('Template 100 students'!D11)=1,('Template 100 students'!D11),"") -> 21 | P10: =IF(COUNTA('Template 100 students'!E11,'Template 100 students'!D11)=2,('Template 100 students'!$D$55),"") -> 22 | Q10: =IF(COUNTA('Template 100 students'!E11,'Template 100 students'!D11)=2,('Template 100 students'!$E$104),"") -> 0.01176660517
A11: =IF(COUNTA('Template 30 students'!B12)=1,('Template 30 students'!B12),"") -> Max | B11: =IF(COUNTA('Template 30 students'!E12)=1,('Template 30 students'!E12),"") -> 0.4201599985 | C11: =IF(COUNTA('Template 30 students'!D12)=1,('Template 30 students'!D12),"") -> 35 | D11: =IF(COUNTA('Template 30 students'!E12,'Template 30 students'!D12)=2,('Template 30 students'!$D$34),"") -> 62.36363636 | E11: =IF(COUNTA('Template 30 students'!E12,'Template 30 students'!D12)=2,AVERAGE($B$2:$B$31),"") -> 0.6175078766 | G11: =IF(COUNTA('Template 50 students'!B12)=1,('Template 50 students'!B12),"") -> Student10 | H11: =IF(COUNTA('Template 50 students'!E12)=1,('Template 50 students'!E12),"") -> 0.430911633 | I11: =IF(COUNTA('Template 50 students'!D12)=1,('Template 50 students'!D12),"") -> 90 | J11: =IF(COUNTA('Template 50 students'!E12,'Template 50 students'!D12)=2,('Template 50 students'!$D$55),"") -> 55.66 | K11: =IF(COUNTA('Template 50 students'!E12,'Template 50 students'!D12)=2,('Template 50 students'!$E$55),"") -> -0.06189458002 | N11: ='Template 100 students'!E12 -> -0.840471798 | O11: =IF(COUNTA('Template 100 students'!D12)=1,('Template 100 students'!D12),"") -> 27 | P11: =IF(COUNTA('Template 100 students'!E12,'Template 100 students'!D12)=2,('Template 100 students'!$D$55),"") -> 22 | Q11: =IF(COUNTA('Template 100 students'!E12,'Template 100 students'!D12)=2,('Template 100 students'!$E$104),"") -> 0.01176660517
A12: =IF(COUNTA('Template 30 students'!B13)=1,('Template 30 students'!B13),"") -> Rodriguez | B12: =IF(COUNTA('Template 30 students'!E13)=1,('Template 30 students'!E13),"") -> 0.07002666642 | C12: =IF(COUNTA('Template 30 students'!D13)=1,('Template 30 students'!D13),"") -> 68 | D12: =IF(COUNTA('Template 30 students'!E13,'Template 30 students'!D13)=2,('Template 30 students'!$D$34),"") -> 62.36363636 | E12: =IF(COUNTA('Template 30 students'!E13,'Template 30 students'!D13)=2,AVERAGE($B$2:$B$31),"") -> 0.6175078766 | G12: =IF(COUNTA('Template 50 students'!B13)=1,('Template 50 students'!B13),"") -> Student11 | H12: =IF(COUNTA('Template 50 students'!E13)=1,('Template 50 students'!E13),"") -> -0.2742164937 | I12: =IF(COUNTA('Template 50 students'!D13)=1,('Template 50 students'!D13),"") -> 79 | J12: =IF(COUNTA('Template 50 students'!E13,'Template 50 students'!D13)=2,('Template 50 students'!$D$55),"") -> 55.66 | K12: =IF(COUNTA('Template 50 students'!E13,'Template 50 students'!D13)=2,('Template 50 students'!$E$55),"") -> -0.06189458002 | N12: ='Template 100 students'!E13 -> 0.840471798 | O12: =IF(COUNTA('Template 100 students'!D13)=1,('Template 100 students'!D13),"") -> 27 | P12: =IF(COUNTA('Template 100 students'!E13,'Template 100 students'!D13)=2,('Template 100 students'!$D$55),"") -> 22 | Q12: =IF(COUNTA('Template 100 students'!E13,'Template 100 students'!D13)=2,('Template 100 students'!$E$104),"") -> 0.01176660517
A13: =IF(COUNTA('Template 30 students'!B14)=1,('Template 30 students'!B14),"") -> Student12 | B13: =IF(COUNTA('Template 30 students'!E14)=1,('Template 30 students'!E14),"") ->  | C13: =IF(COUNTA('Template 30 students'!D14)=1,('Template 30 students'!D14),"") ->  | D13: =IF(COUNTA('Template 30 students'!E14,'Template 30 students'!D14)=2,('Template 30 students'!$D$34),"") ->  | E13: =IF(COUNTA('Template 30 students'!E14,'Template 30 students'!D14)=2,AVERAGE($B$2:$B$31),"") ->  | G13: =IF(COUNTA('Template 50 students'!B14)=1,('Template 50 students'!B14),"") -> Student12 | H13: =IF(COUNTA('Template 50 students'!E14)=1,('Template 50 students'!E14),"") -> -2.232905735 | I13: =IF(COUNTA('Template 50 students'!D14)=1,('Template 50 students'!D14),"") -> 11 | J13: =IF(COUNTA('Template 50 students'!E14,'Template 50 students'!D14)=2,('Template 50 students'!$D$55),"") -> 55.66 | K13: =IF(COUNTA('Template 50 students'!E14,'Template 50 students'!D14)=2,('Template 50 students'!$E$55),"") -> -0.06189458002 | N13: ='Template 100 students'!E14 -> -0.840471798 | O13: =IF(COUNTA('Template 100 students'!D14)=1,('Template 100 students'!D14),"") -> 23 | P13: =IF(COUNTA('Template 100 students'!E14,'Template 100 students'!D14)=2,('Template 100 students'!$D$55),"") -> 22 | Q13: =IF(COUNTA('Template 100 students'!E14,'Template 100 students'!D14)=2,('Template 100 students'!$E$104),"") -> 0.01176660517
A14: =IF(COUNTA('Template 30 students'!B15)=1,('Template 30 students'!B15),"") -> Student13 | B14: =IF(COUNTA('Template 30 students'!E15)=1,('Template 30 students'!E15),"") ->  | C14: =IF(COUNTA('Template 30 students'!D15)=1,('Template 30 students'!D15),"") ->  | D14: =IF(COUNTA('Template 30 students'!E15,'Template 30 students'!D15)=2,('Template 30 students'!$D$34),"") ->  | E14: =IF(COUNTA('Template 30 students'!E15,'Template 30 students'!D15)=2,AVERAGE($B$2:$B$31),"") ->  | G14: =IF(COUNTA('Template 50 students'!B15)=1,('Template 50 students'!B15),"") -> Student13 | H14: =IF(COUNTA('Template 50 students'!E15)=1,('Template 50 students'!E15),"") -> -0.3525640634 | I14: =IF(COUNTA('Template 50 students'!D15)=1,('Template 50 students'!D15),"") -> 67 | J14: =IF(COUNTA('Template 50 students'!E15,'Template 50 students'!D15)=2,('Template 50 students'!$D$55),"") -> 55.66 | K14: =IF(COUNTA('Template 50 students'!E15,'Template 50 students'!D15)=2,('Template 50 students'!$E$55),"") -> -0.06189458002 | N14: ='Template 100 students'!E15 -> -1.008566158 | O14: =IF(COUNTA('Template 100 students'!D15)=1,('Template 100 students'!D15),"") -> 33 | P14: =IF(COUNTA('Template 100 students'!E15,'Template 100 students'!D15)=2,('Template 100 students'!$D$55),"") -> 22 | Q14: =IF(COUNTA('Template 100 students'!E15,'Template 100 students'!D15)=2,('Template 100 students'!$E$104),"") -> 0.01176660517
A15: =IF(COUNTA('Template 30 students'!B16)=1,('Template 30 students'!B16),"") -> Student14 | B15: =IF(COUNTA('Template 30 students'!E16)=1,('Template 30 students'!E16),"") ->  | C15: =IF(COUNTA('Template 30 students'!D16)=1,('Template 30 students'!D16),"") ->  | D15: =IF(COUNTA('Template 30 students'!E16,'Template 30 students'!D16)=2,('Template 30 students'!$D$34),"") ->  | E15: =IF(COUNTA('Template 30 students'!E16,'Template 30 students'!D16)=2,AVERAGE($B$2:$B$31),"") ->  | G15: =IF(COUNTA('Template 50 students'!B16)=1,('Template 50 students'!B16),"") -> Student14 | H15: =IF(COUNTA('Template 50 students'!E16)=1,('Template 50 students'!E16),"") -> -0.5484329875 | I15: =IF(COUNTA('Template 50 students'!D16)=1,('Template 50 students'!D16),"") -> 40 | J15: =IF(COUNTA('Template 50 students'!E16,'Template 50 students'!D16)=2,('Template 50 students'!$D$55),"") -> 55.66 | K15: =IF(COUNTA('Template 50 students'!E16,'Template 50 students'!D16)=2,('Template 50 students'!$E$55),"") -> -0.06189458002 | N15: ='Template 100 students'!E16 -> -0.6723774384 | O15: =IF(COUNTA('Template 100 students'!D16)=1,('Template 100 students'!D16),"") -> 28 | P15: =IF(COUNTA('Template 100 students'!E16,'Template 100 students'!D16)=2,('Template 100 students'!$D$55),"") -> 22 | Q15: =IF(COUNTA('Template 100 students'!E16,'Template 100 students'!D16)=2,('Template 100 students'!$E$104),"") -> 0.01176660517
A16: =IF(COUNTA('Template 30 students'!B17)=1,('Template 30 students'!B17),"") -> Student15 | B16: =IF(COUNTA('Template 30 students'!E17)=1,('Template 30 students'!E17),"") ->  | C16: =IF(COUNTA('Template 30 students'!D17)=1,('Template 30 students'!D17),"") ->  | D16: =IF(COUNTA('Template 30 students'!E17,'Template 30 students'!D17)=2,('Template 30 students'!$D$34),"") ->  | E16: =IF(COUNTA('Template 30 students'!E17,'Template 30 students'!D17)=2,AVERAGE($B$2:$B$31),"") ->  | G16: =IF(COUNTA('Template 50 students'!B17)=1,('Template 50 students'!B17),"") -> Student15 | H16: =IF(COUNTA('Template 50 students'!E17)=1,('Template 50 students'!E17),"") -> 0.1958689241 | I16: =IF(COUNTA('Template 50 students'!D17)=1,('Template 50 students'!D17),"") -> 26 | J16: =IF(COUNTA('Template 50 students'!E17,'Template 50 students'!D17)=2,('Template 50 students'!$D$55),"") -> 55.66 | K16: =IF(COUNTA('Template 50 students'!E17,'Template 50 students'!D17)=2,('Template 50 students'!$E$55),"") -> -0.06189458002 | N16: ='Template 100 students'!E17 -> 0.1680943596 | O16: =IF(COUNTA('Template 100 students'!D17)=1,('Template 100 students'!D17),"") -> 25 | P16: =IF(COUNTA('Template 100 students'!E17,'Template 100 students'!D17)=2,('Template 100 students'!$D$55),"") -> 22 | Q16: =IF(COUNTA('Template 100 students'!E17,'Template 100 students'!D17)=2,('Template 100 students'!$E$104),"") -> 0.01176660517
A17: =IF(COUNTA('Template 30 students'!B18)=1,('Template 30 students'!B18),"") -> Student16 | B17: =IF(COUNTA('Template 30 students'!E18)=1,('Template 30 students'!E18),"") ->  | C17: =IF(COUNTA('Template 30 students'!D18)=1,('Template 30 students'!D18),"") ->  | D17: =IF(COUNTA('Template 30 students'!E18,'Template 30 students'!D18)=2,('Template 30 students'!$D$34),"") ->  | E17: =IF(COUNTA('Template 30 students'!E18,'Template 30 students'!D18)=2,AVERAGE($B$2:$B$31),"") ->  | G17: =IF(COUNTA('Template 50 students'!B18)=1,('Template 50 students'!B18),"") -> Student16 | H17: =IF(COUNTA('Template 50 students'!E18)=1,('Template 50 students'!E18),"") -> -0.7443019116 | I17: =IF(COUNTA('Template 50 students'!D18)=1,('Template 50 students'!D18),"") -> 80 | J17: =IF(COUNTA('Template 50 students'!E18,'Template 50 students'!D18)=2,('Template 50 students'!$D$55),"") -> 55.66 | K17: =IF(COUNTA('Template 50 students'!E18,'Template 50 students'!D18)=2,('Template 50 students'!$E$55),"") -> -0.06189458002 | N17: ='Template 100 students'!E18 -> 1.512849236 | O17: =IF(COUNTA('Template 100 students'!D18)=1,('Template 100 students'!D18),"") -> 38 | P17: =IF(COUNTA('Template 100 students'!E18,'Template 100 students'!D18)=2,('Template 100 students'!$D$55),"") -> 22 | Q17: =IF(COUNTA('Template 100 students'!E18,'Template 100 students'!D18)=2,('Template 100 students'!$E$104),"") -> 0.01176660517
A18: =IF(COUNTA('Template 30 students'!B19)=1,('Template 30 students'!B19),"") -> Student17 | B18: =IF(COUNTA('Template 30 students'!E19)=1,('Template 30 students'!E19),"") ->  | C18: =IF(COUNTA('Template 30 students'!D19)=1,('Template 30 students'!D19),"") ->  | D18: =IF(COUNTA('Template 30 students'!E19,'Template 30 students'!D19)=2,('Template 30 students'!$D$34),"") ->  | E18: =IF(COUNTA('Template 30 students'!E19,'Template 30 students'!D19)=2,AVERAGE($B$2:$B$31),"") ->  | G18: =IF(COUNTA('Template 50 students'!B19)=1,('Template 50 students'!B19),"") -> Student17 | H18: =IF(COUNTA('Template 50 students'!E19)=1,('Template 50 students'!E19),"") -> -1.997863026 | I18: =IF(COUNTA('Template 50 students'!D19)=1,('Template 50 students'!D19),"") -> 35 | J18: =IF(COUNTA('Template 50 students'!E19,'Template 50 students'!D19)=2,('Template 50 students'!$D$55),"") -> 55.66 | K18: =IF(COUNTA('Template 50 students'!E19,'Template 50 students'!D19)=2,('Template 50 students'!$E$55),"") -> -0.06189458002 | N18: ='Template 100 students'!E19 -> 0.1680943596 | O18: =IF(COUNTA('Template 100 students'!D19)=1,('Template 100 students'!D19),"") -> 24 | P18: =IF(COUNTA('Template 100 students'!E19,'Template 100 students'!D19)=2,('Template 100 students'!$D$55),"") -> 22 | Q18: =IF(COUNTA('Template 100 students'!E19,'Template 100 students'!D19)=2,('Template 100 students'!$E$104),"") -> 0.01176660517
A19: =IF(COUNTA('Template 30 students'!B20)=1,('Template 30 students'!B20),"") -> Student18 | B19: =IF(COUNTA('Template 30 students'!E20)=1,('Template 30 students'!E20),"") ->  | C19: =IF(COUNTA('Template 30 students'!D20)=1,('Template 30 students'!D20),"") ->  | D19: =IF(COUNTA('Template 30 students'!E20,'Template 30 students'!D20)=2,('Template 30 students'!$D$34),"") ->  | E19: =IF(COUNTA('Template 30 students'!E20,'Template 30 students'!D20)=2,AVERAGE($B$2:$B$31),"") ->  | G19: =IF(COUNTA('Template 50 students'!B20)=1,('Template 50 students'!B20),"") -> Student18 | H19: =IF(COUNTA('Template 50 students'!E20)=1,('Template 50 students'!E20),"") -> -1.488603823 | I19: =IF(COUNTA('Template 50 students'!D20)=1,('Template 50 students'!D20),"") -> 20 | J19: =IF(COUNTA('Template 50 students'!E20,'Template 50 students'!D20)=2,('Template 50 students'!$D$55),"") -> 55.66 | K19: =IF(COUNTA('Template 50 students'!E20,'Template 50 students'!D20)=2,('Template 50 students'!$E$55),"") -> -0.06189458002 | N19: ='Template 100 students'!E20 -> 0.1680943596 | O19: =IF(COUNTA('Template 100 students'!D20)=1,('Template 100 students'!D20),"") -> 31 | P19: =IF(COUNTA('Template 100 students'!E20,'Template 100 students'!D20)=2,('Template 100 students'!$D$55),"") -> 22 | Q19: =IF(COUNTA('Template 100 students'!E20,'Template 100 students'!D20)=2,('Template 100 students'!$E$104),"") -> 0.01176660517
A20: =IF(COUNTA('Template 30 students'!B21)=1,('Template 30 students'!B21),"") -> Student19 | B20: =IF(COUNTA('Template 30 students'!E21)=1,('Template 30 students'!E21),"") ->  | C20: =IF(COUNTA('Template 30 students'!D21)=1,('Template 30 students'!D21),"") ->  | D20: =IF(COUNTA('Template 30 students'!E21,'Template 30 students'!D21)=2,('Template 30 students'!$D$34),"") ->  | E20: =IF(COUNTA('Template 30 students'!E21,'Template 30 students'!D21)=2,AVERAGE($B$2:$B$31),"") ->  | G20: =IF(COUNTA('Template 50 students'!B21)=1,('Template 50 students'!B21),"") -> Student19 | H20: =IF(COUNTA('Template 50 students'!E21)=1,('Template 50 students'!E21),"") -> 2.742164937 | I20: =IF(COUNTA('Template 50 students'!D21)=1,('Template 50 students'!D21),"") -> 88 | J20: =IF(COUNTA('Template 50 students'!E21,'Template 50 students'!D21)=2,('Template 50 students'!$D$55),"") -> 55.66 | K20: =IF(COUNTA('Template 50 students'!E21,'Template 50 students'!D21)=2,('Template 50 students'!$E$55),"") -> -0.06189458002 | N20: ='Template 100 students'!E21 -> 0.3361887192 | O20: =IF(COUNTA('Template 100 students'!D21)=1,('Template 100 students'!D21),"") -> 24 | P20: =IF(COUNTA('Template 100 students'!E21,'Template 100 students'!D21)=2,('Template 100 students'!$D$55),"") -> 22 | Q20: =IF(COUNTA('Template 100 students'!E21,'Template 100 students'!D21)=2,('Template 100 students'!$E$104),"") -> 0.01176660517
A21: =IF(COUNTA('Template 30 students'!B22)=1,('Template 30 students'!B22),"") -> Student20 | B21: =IF(COUNTA('Template 30 students'!E22)=1,('Template 30 students'!E22),"") ->  | C21: =IF(COUNTA('Template 30 students'!D22)=1,('Template 30 students'!D22),"") ->  | D21: =IF(COUNTA('Template 30 students'!E22,'Template 30 students'!D22)=2,('Template 30 students'!$D$34),"") ->  | E21: =IF(COUNTA('Template 30 students'!E22,'Template 30 students'!D22)=2,AVERAGE($B$2:$B$31),"") ->  | G21: =IF(COUNTA('Template 50 students'!B22)=1,('Template 50 students'!B22),"") -> Student20 | H21: =IF(COUNTA('Template 50 students'!E22)=1,('Template 50 students'!E22),"") -> 1.371082469 | I21: =IF(COUNTA('Template 50 students'!D22)=1,('Template 50 students'!D22),"") -> 56 | J21: =IF(COUNTA('Template 50 students'!E22,'Template 50 students'!D22)=2,('Template 50 students'!$D$55),"") -> 55.66 | K21: =IF(COUNTA('Template 50 students'!E22,'Template 50 students'!D22)=2,('Template 50 students'!$E$55),"") -> -0.06189458002 | N21: ='Template 100 students'!E22 -> 0.6723774384 | O21: =IF(COUNTA('Template 100 students'!D22)=1,('Template 100 students'!D22),"") -> 28 | P21: =IF(COUNTA('Template 100 students'!E22,'Template 100 students'!D22)=2,('Template 100 students'!$D$55),"") -> 22 | Q21: =IF(COUNTA('Template 100 students'!E22,'Template 100 students'!D22)=2,('Template 100 students'!$E$104),"") -> 0.01176660517
A22: =IF(COUNTA('Template 30 students'!B23)=1,('Template 30 students'!B23),"") -> Student21 | B22: =IF(COUNTA('Template 30 students'!E23)=1,('Template 30 students'!E23),"") ->  | C22: =IF(COUNTA('Template 30 students'!D23)=1,('Template 30 students'!D23),"") ->  | D22: =IF(COUNTA('Template 30 students'!E23,'Template 30 students'!D23)=2,('Template 30 students'!$D$34),"") ->  | E22: =IF(COUNTA('Template 30 students'!E23,'Template 30 students'!D23)=2,AVERAGE($B$2:$B$31),"") ->  | G22: =IF(COUNTA('Template 50 students'!B23)=1,('Template 50 students'!B23),"") -> Student21 | H22: =IF(COUNTA('Template 50 students'!E23)=1,('Template 50 students'!E23),"") -> 0.8226494812 | I22: =IF(COUNTA('Template 50 students'!D23)=1,('Template 50 students'!D23),"") -> 77 | J22: =IF(COUNTA('Template 50 students'!E23,'Template 50 students'!D23)=2,('Template 50 students'!$D$55),"") -> 55.66 | K22: =IF(COUNTA('Template 50 students'!E23,'Template 50 students'!D23)=2,('Template 50 students'!$E$55),"") -> -0.06189458002 | N22: ='Template 100 students'!E23 -> 0 | O22: =IF(COUNTA('Template 100 students'!D23)=1,('Template 100 students'!D23),"") -> 33 | P22: =IF(COUNTA('Template 100 students'!E23,'Template 100 students'!D23)=2,('Template 100 students'!$D$55),"") -> 22 | Q22: =IF(COUNTA('Template 100 students'!E23,'Template 100 students'!D23)=2,('Template 100 students'!$E$104),"") -> 0.01176660517
A23: =IF(COUNTA('Template 30 students'!B24)=1,('Template 30 students'!B24),"") -> Student22 | B23: =IF(COUNTA('Template 30 students'!E24)=1,('Template 30 students'!E24),"") ->  | C23: =IF(COUNTA('Template 30 students'!D24)=1,('Template 30 students'!D24),"") ->  | D23: =IF(COUNTA('Template 30 students'!E24,'Template 30 students'!D24)=2,('Template 30 students'!$D$34),"") ->  | E23: =IF(COUNTA('Template 30 students'!E24,'Template 30 students'!D24)=2,AVERAGE($B$2:$B$31),"") ->  | G23: =IF(COUNTA('Template 50 students'!B24)=1,('Template 50 students'!B24),"") -> Student22 | H23: =IF(COUNTA('Template 50 students'!E24)=1,('Template 50 students'!E24),"") -> 0.7051281268 | I23: =IF(COUNTA('Template 50 students'!D24)=1,('Template 50 students'!D24),"") -> 68 | J23: =IF(COUNTA('Template 50 students'!E24,'Template 50 students'!D24)=2,('Template 50 students'!$D$55),"") -> 55.66 | K23: =IF(COUNTA('Template 50 students'!E24,'Template 50 students'!D24)=2,('Template 50 students'!$E$55),"") -> -0.06189458002 | N23: ='Template 100 students'!E24 -> -1.680943596 | O23: =IF(COUNTA('Template 100 students'!D24)=1,('Template 100 students'!D24),"") -> 28 | P23: =IF(COUNTA('Template 100 students'!E24,'Template 100 students'!D24)=2,('Template 100 students'!$D$55),"") -> 22 | Q23: =IF(COUNTA('Template 100 students'!E24,'Template 100 students'!D24)=2,('Template 100 students'!$E$104),"") -> 0.01176660517
A24: =IF(COUNTA('Template 30 students'!B25)=1,('Template 30 students'!B25),"") -> Student23 | B24: =IF(COUNTA('Template 30 students'!E25)=1,('Template 30 students'!E25),"") ->  | C24: =IF(COUNTA('Template 30 students'!D25)=1,('Template 30 students'!D25),"") ->  | D24: =IF(COUNTA('Template 30 students'!E25,'Template 30 students'!D25)=2,('Template 30 students'!$D$34),"") ->  | E24: =IF(COUNTA('Template 30 students'!E25,'Template 30 students'!D25)=2,AVERAGE($B$2:$B$31),"") ->  | G24: =IF(COUNTA('Template 50 students'!B25)=1,('Template 50 students'!B25),"") -> Student23 | H24: =IF(COUNTA('Template 50 students'!E25)=1,('Template 50 students'!E25),"") -> 0.5092592027 | I24: =IF(COUNTA('Template 50 students'!D25)=1,('Template 50 students'!D25),"") -> 39 | J24: =IF(COUNTA('Template 50 students'!E25,'Template 50 students'!D25)=2,('Template 50 students'!$D$55),"") -> 55.66 | K24: =IF(COUNTA('Template 50 students'!E25,'Template 50 students'!D25)=2,('Template 50 students'!$E$55),"") -> -0.06189458002 | N24: ='Template 100 students'!E25 -> 0 | O24: =IF(COUNTA('Template 100 students'!D25)=1,('Template 100 students'!D25),"") -> 25 | P24: =IF(COUNTA('Template 100 students'!E25,'Template 100 students'!D25)=2,('Template 100 students'!$D$55),"") -> 22 | Q24: =IF(COUNTA('Template 100 students'!E25,'Template 100 students'!D25)=2,('Template 100 students'!$E$104),"") -> 0.01176660517
A25: =IF(COUNTA('Template 30 students'!B26)=1,('Template 30 students'!B26),"") -> Student24 | B25: =IF(COUNTA('Template 30 students'!E26)=1,('Template 30 students'!E26),"") ->  | C25: =IF(COUNTA('Template 30 students'!D26)=1,('Template 30 students'!D26),"") ->  | D25: =IF(COUNTA('Template 30 students'!E26,'Template 30 students'!D26)=2,('Template 30 students'!$D$34),"") ->  | E25: =IF(COUNTA('Template 30 students'!E26,'Template 30 students'!D26)=2,AVERAGE($B$2:$B$31),"") ->  | G25: =IF(COUNTA('Template 50 students'!B26)=1,('Template 50 students'!B26),"") -> Student24 | H25: =IF(COUNTA('Template 50 students'!E26)=1,('Template 50 students'!E26),"") -> -2.898860077 | I25: =IF(COUNTA('Template 50 students'!D26)=1,('Template 50 students'!D26),"") -> 21 | J25: =IF(COUNTA('Template 50 students'!E26,'Template 50 students'!D26)=2,('Template 50 students'!$D$55),"") -> 55.66 | K25: =IF(COUNTA('Template 50 students'!E26,'Template 50 students'!D26)=2,('Template 50 students'!$E$55),"") -> -0.06189458002 | N25: ='Template 100 students'!E26 -> -0.1680943596 | O25: =IF(COUNTA('Template 100 students'!D26)=1,('Template 100 students'!D26),"") -> 20 | P25: =IF(COUNTA('Template 100 students'!E26,'Template 100 students'!D26)=2,('Template 100 students'!$D$55),"") -> 22 | Q25: =IF(COUNTA('Template 100 students'!E26,'Template 100 students'!D26)=2,('Template 100 students'!$E$104),"") -> 0.01176660517
A26: =IF(COUNTA('Template 30 students'!B27)=1,('Template 30 students'!B27),"") -> Student25 | B26: =IF(COUNTA('Template 30 students'!E27)=1,('Template 30 students'!E27),"") ->  | C26: =IF(COUNTA('Template 30 students'!D27)=1,('Template 30 students'!D27),"") ->  | D26: =IF(COUNTA('Template 30 students'!E27,'Template 30 students'!D27)=2,('Template 30 students'!$D$34),"") ->  | E26: =IF(COUNTA('Template 30 students'!E27,'Template 30 students'!D27)=2,AVERAGE($B$2:$B$31),"") ->  | G26: =IF(COUNTA('Template 50 students'!B27)=1,('Template 50 students'!B27),"") -> Student25 | H26: =IF(COUNTA('Template 50 students'!E27)=1,('Template 50 students'!E27),"") -> 1.371082469 | I26: =IF(COUNTA('Template 50 students'!D27)=1,('Template 50 students'!D27),"") -> 57 | J26: =IF(COUNTA('Template 50 students'!E27,'Template 50 students'!D27)=2,('Template 50 students'!$D$55),"") -> 55.66 | K26: =IF(COUNTA('Template 50 students'!E27,'Template 50 students'!D27)=2,('Template 50 students'!$E$55),"") -> -0.06189458002 | N26: ='Template 100 students'!E27 -> -0.840471798 | O26: =IF(COUNTA('Template 100 students'!D27)=1,('Template 100 students'!D27),"") -> 34 | P26: =IF(COUNTA('Template 100 students'!E27,'Template 100 students'!D27)=2,('Template 100 students'!$D$55),"") -> 22 | Q26: =IF(COUNTA('Template 100 students'!E27,'Template 100 students'!D27)=2,('Template 100 students'!$E$104),"") -> 0.01176660517
A27: =IF(COUNTA('Template 30 students'!B28)=1,('Template 30 students'!B28),"") -> Student26 | B27: =IF(COUNTA('Template 30 students'!E28)=1,('Template 30 students'!E28),"") ->  | C27: =IF(COUNTA('Template 30 students'!D28)=1,('Template 30 students'!D28),"") ->  | D27: =IF(COUNTA('Template 30 students'!E28,'Template 30 students'!D28)=2,('Template 30 students'!$D$34),"") ->  | E27: =IF(COUNTA('Template 30 students'!E28,'Template 30 students'!D28)=2,AVERAGE($B$2:$B$31),"") ->  | G27: =IF(COUNTA('Template 50 students'!B28)=1,('Template 50 students'!B28),"") -> Student26 | H27: =IF(COUNTA('Template 50 students'!E28)=1,('Template 50 students'!E28),"") -> 1.331908684 | I27: =IF(COUNTA('Template 50 students'!D28)=1,('Template 50 students'!D28),"") -> 82 | J27: =IF(COUNTA('Template 50 students'!E28,'Template 50 students'!D28)=2,('Template 50 students'!$D$55),"") -> 55.66 | K27: =IF(COUNTA('Template 50 students'!E28,'Template 50 students'!D28)=2,('Template 50 students'!$E$55),"") -> -0.06189458002 | N27: ='Template 100 students'!E28 -> -0.5042830788 | O27: =IF(COUNTA('Template 100 students'!D28)=1,('Template 100 students'!D28),"") -> 31 | P27: =IF(COUNTA('Template 100 students'!E28,'Template 100 students'!D28)=2,('Template 100 students'!$D$55),"") -> 22 | Q27: =IF(COUNTA('Template 100 students'!E28,'Template 100 students'!D28)=2,('Template 100 students'!$E$104),"") -> 0.01176660517
A28: =IF(COUNTA('Template 30 students'!B29)=1,('Template 30 students'!B29),"") -> Student27 | B28: =IF(COUNTA('Template 30 students'!E29)=1,('Template 30 students'!E29),"") ->  | C28: =IF(COUNTA('Template 30 students'!D29)=1,('Template 30 students'!D29),"") ->  | D28: =IF(COUNTA('Template 30 students'!E29,'Template 30 students'!D29)=2,('Template 30 students'!$D$34),"") ->  | E28: =IF(COUNTA('Template 30 students'!E29,'Template 30 students'!D29)=2,AVERAGE($B$2:$B$31),"") ->  | G28: =IF(COUNTA('Template 50 students'!B29)=1,('Template 50 students'!B29),"") -> Student27 | H28: =IF(COUNTA('Template 50 students'!E29)=1,('Template 50 students'!E29),"") -> -1.841167887 | I28: =IF(COUNTA('Template 50 students'!D29)=1,('Template 50 students'!D29),"") -> 23 | J28: =IF(COUNTA('Template 50 students'!E29,'Template 50 students'!D29)=2,('Template 50 students'!$D$55),"") -> 55.66 | K28: =IF(COUNTA('Template 50 students'!E29,'Template 50 students'!D29)=2,('Template 50 students'!$E$55),"") -> -0.06189458002 | N28: ='Template 100 students'!E29 -> -1.512849236 | O28: =IF(COUNTA('Template 100 students'!D29)=1,('Template 100 students'!D29),"") -> 28 | P28: =IF(COUNTA('Template 100 students'!E29,'Template 100 students'!D29)=2,('Template 100 students'!$D$55),"") -> 22 | Q28: =IF(COUNTA('Template 100 students'!E29,'Template 100 students'!D29)=2,('Template 100 students'!$E$104),"") -> 0.01176660517
A29: =IF(COUNTA('Template 30 students'!B30)=1,('Template 30 students'!B30),"") -> Student28 | B29: =IF(COUNTA('Template 30 students'!E30)=1,('Template 30 students'!E30),"") ->  | C29: =IF(COUNTA('Template 30 students'!D30)=1,('Template 30 students'!D30),"") ->  | D29: =IF(COUNTA('Template 30 students'!E30,'Template 30 students'!D30)=2,('Template 30 students'!$D$34),"") ->  | E29: =IF(COUNTA('Template 30 students'!E30,'Template 30 students'!D30)=2,AVERAGE($B$2:$B$31),"") ->  | G29: =IF(COUNTA('Template 50 students'!B30)=1,('Template 50 students'!B30),"") -> Student28 | H29: =IF(COUNTA('Template 50 students'!E30)=1,('Template 50 students'!E30),"") -> -2.037036811 | I29: =IF(COUNTA('Template 50 students'!D30)=1,('Template 50 students'!D30),"") -> 28 | J29: =IF(COUNTA('Template 50 students'!E30,'Template 50 students'!D30)=2,('Template 50 students'!$D$55),"") -> 55.66 | K29: =IF(COUNTA('Template 50 students'!E30,'Template 50 students'!D30)=2,('Template 50 students'!$E$55),"") -> -0.06189458002 | N29: ='Template 100 students'!E30 -> 1.680943596 | O29: =IF(COUNTA('Template 100 students'!D30)=1,('Template 100 students'!D30),"") -> 31 | P29: =IF(COUNTA('Template 100 students'!E30,'Template 100 students'!D30)=2,('Template 100 students'!$D$55),"") -> 22 | Q29: =IF(COUNTA('Template 100 students'!E30,'Template 100 students'!D30)=2,('Template 100 students'!$E$104),"") -> 0.01176660517
A30: =IF(COUNTA('Template 30 students'!B31)=1,('Template 30 students'!B31),"") -> Student29 | B30: =IF(COUNTA('Template 30 students'!E31)=1,('Template 30 students'!E31),"") ->  | C30: =IF(COUNTA('Template 30 students'!D31)=1,('Template 30 students'!D31),"") ->  | D30: =IF(COUNTA('Template 30 students'!E31,'Template 30 students'!D31)=2,('Template 30 students'!$D$34),"") ->  | E30: =IF(COUNTA('Template 30 students'!E31,'Template 30 students'!D31)=2,AVERAGE($B$2:$B$31),"") ->  | G30: =IF(COUNTA('Template 50 students'!B31)=1,('Template 50 students'!B31),"") -> Student29 | H30: =IF(COUNTA('Template 50 students'!E31)=1,('Template 50 students'!E31),"") -> -1.410256254 | I30: =IF(COUNTA('Template 50 students'!D31)=1,('Template 50 students'!D31),"") -> 27 | J30: =IF(COUNTA('Template 50 students'!E31,'Template 50 students'!D31)=2,('Template 50 students'!$D$55),"") -> 55.66 | K30: =IF(COUNTA('Template 50 students'!E31,'Template 50 students'!D31)=2,('Template 50 students'!$E$55),"") -> -0.06189458002 | N30: ='Template 100 students'!E31 -> 1.680943596 | O30: =IF(COUNTA('Template 100 students'!D31)=1,('Template 100 students'!D31),"") -> 32 | P30: =IF(COUNTA('Template 100 students'!E31,'Template 100 students'!D31)=2,('Template 100 students'!$D$55),"") -> 22 | Q30: =IF(COUNTA('Template 100 students'!E31,'Template 100 students'!D31)=2,('Template 100 students'!$E$104),"") -> 0.01176660517
A31: =IF(COUNTA('Template 30 students'!B32)=1,('Template 30 students'!B32),"") -> Student30 | B31: =IF(COUNTA('Template 30 students'!E32)=1,('Template 30 students'!E32),"") ->  | C31: =IF(COUNTA('Template 30 students'!D32)=1,('Template 30 students'!D32),"") ->  | D31: =IF(COUNTA('Template 30 students'!E32,'Template 30 students'!D32)=2,('Template 30 students'!$D$34),"") ->  | E31: =IF(COUNTA('Template 30 students'!E32,'Template 30 students'!D32)=2,AVERAGE($B$2:$B$31),"") ->  | G31: =IF(COUNTA('Template 50 students'!B32)=1,('Template 50 students'!B32),"") -> Student30 | H31: =IF(COUNTA('Template 50 students'!E32)=1,('Template 50 students'!E32),"") -> -1.880341671 | I31: =IF(COUNTA('Template 50 students'!D32)=1,('Template 50 students'!D32),"") -> 11 | J31: =IF(COUNTA('Template 50 students'!E32,'Template 50 students'!D32)=2,('Template 50 students'!$D$55),"") -> 55.66 | K31: =IF(COUNTA('Template 50 students'!E32,'Template 50 students'!D32)=2,('Template 50 students'!$E$55),"") -> -0.06189458002 | N31: ='Template 100 students'!E32 -> 0.6723774384 | O31: =IF(COUNTA('Template 100 students'!D32)=1,('Template 100 students'!D32),"") -> 29 | P31: =IF(COUNTA('Template 100 students'!E32,'Template 100 students'!D32)=2,('Template 100 students'!$D$55),"") -> 22 | Q31: =IF(COUNTA('Template 100 students'!E32,'Template 100 students'!D32)=2,('Template 100 students'!$E$104),"") -> 0.01176660517
G32: =IF(COUNTA('Template 50 students'!B33)=1,('Template 50 students'!B33),"") -> Student31 | H32: =IF(COUNTA('Template 50 students'!E33)=1,('Template 50 students'!E33),"") -> -0.9793446205 | I32: =IF(COUNTA('Template 50 students'!D33)=1,('Template 50 students'!D33),"") -> 43 | J32: =IF(COUNTA('Template 50 students'!E33,'Template 50 students'!D33)=2,('Template 50 students'!$D$55),"") -> 55.66 | K32: =IF(COUNTA('Template 50 students'!E33,'Template 50 students'!D33)=2,('Template 50 students'!$E$55),"") -> -0.06189458002 | N32: ='Template 100 students'!E33 -> -1.008566158 | O32: =IF(COUNTA('Template 100 students'!D33)=1,('Template 100 students'!D33),"") -> 30 | P32: =IF(COUNTA('Template 100 students'!E33,'Template 100 students'!D33)=2,('Template 100 students'!$D$55),"") -> 22 | Q32: =IF(COUNTA('Template 100 students'!E33,'Template 100 students'!D33)=2,('Template 100 students'!$E$104),"") -> 0.01176660517
A33: Min | B33: =E2 -> 0.6175078766 | C33: =MIN(C2:C31)-10 -> 25 | E33: =COUNT('Template 30 students'!D3:D32) -> 11 | G33: =IF(COUNTA('Template 50 students'!B34)=1,('Template 50 students'!B34),"") -> Student32 | H33: =IF(COUNTA('Template 50 students'!E34)=1,('Template 50 students'!E34),"") -> 0.03917378482 | I33: =IF(COUNTA('Template 50 students'!D34)=1,('Template 50 students'!D34),"") -> 64 | J33: =IF(COUNTA('Template 50 students'!E34,'Template 50 students'!D34)=2,('Template 50 students'!$D$55),"") -> 55.66 | K33: =IF(COUNTA('Template 50 students'!E34,'Template 50 students'!D34)=2,('Template 50 students'!$E$55),"") -> -0.06189458002 | N33: ='Template 100 students'!E34 -> -0.5042830788 | O33: =IF(COUNTA('Template 100 students'!D34)=1,('Template 100 students'!D34),"") -> 22 | P33: =IF(COUNTA('Template 100 students'!E34,'Template 100 students'!D34)=2,('Template 100 students'!$D$55),"") -> 22 | Q33: =IF(COUNTA('Template 100 students'!E34,'Template 100 students'!D34)=2,('Template 100 students'!$E$104),"") -> 0.01176660517
A34: Max | B34: =E2 -> 0.6175078766 | C34: =MAX(C2:C31)+10 -> 88 | G34: =IF(COUNTA('Template 50 students'!B35)=1,('Template 50 students'!B35),"") -> Student33 | H34: =IF(COUNTA('Template 50 students'!E35)=1,('Template 50 students'!E35),"") -> 0.6659543419 | I34: =IF(COUNTA('Template 50 students'!D35)=1,('Template 50 students'!D35),"") -> 62 | J34: =IF(COUNTA('Template 50 students'!E35,'Template 50 students'!D35)=2,('Template 50 students'!$D$55),"") -> 55.66 | K34: =IF(COUNTA('Template 50 students'!E35,'Template 50 students'!D35)=2,('Template 50 students'!$E$55),"") -> -0.06189458002 | N34: ='Template 100 students'!E35 -> -1.176660517 | O34: =IF(COUNTA('Template 100 students'!D35)=1,('Template 100 students'!D35),"") -> 29 | P34: =IF(COUNTA('Template 100 students'!E35,'Template 100 students'!D35)=2,('Template 100 students'!$D$55),"") -> 22 | Q34: =IF(COUNTA('Template 100 students'!E35,'Template 100 students'!D35)=2,('Template 100 students'!$E$104),"") -> 0.01176660517
B35: =MIN(B2:B31) -> -0.2801066657 | C35: ='Template 30 students'!$D$34 -> 62.36363636 | G35: =IF(COUNTA('Template 50 students'!B36)=1,('Template 50 students'!B36),"") -> Student34 | H35: =IF(COUNTA('Template 50 students'!E36)=1,('Template 50 students'!E36),"") -> -0.430911633 | I35: =IF(COUNTA('Template 50 students'!D36)=1,('Template 50 students'!D36),"") -> 39 | J35: =IF(COUNTA('Template 50 students'!E36,'Template 50 students'!D36)=2,('Template 50 students'!$D$55),"") -> 55.66 | K35: =IF(COUNTA('Template 50 students'!E36,'Template 50 students'!D36)=2,('Template 50 students'!$E$55),"") -> -0.06189458002 | N35: ='Template 100 students'!E36 -> 2.857604113 | O35: =IF(COUNTA('Template 100 students'!D36)=1,('Template 100 students'!D36),"") -> 39 | P35: =IF(COUNTA('Template 100 students'!E36,'Template 100 students'!D36)=2,('Template 100 students'!$D$55),"") -> 22 | Q35: =IF(COUNTA('Template 100 students'!E36,'Template 100 students'!D36)=2,('Template 100 students'!$E$104),"") -> 0.01176660517
B36: =MAX(B2:B31) -> 1.610613328 | C36: ='Template 30 students'!$D$34 -> 62.36363636 | G36: =IF(COUNTA('Template 50 students'!B37)=1,('Template 50 students'!B37),"") -> Student35 | H36: =IF(COUNTA('Template 50 students'!E37)=1,('Template 50 students'!E37),"") -> 2.781338722 | I36: =IF(COUNTA('Template 50 students'!D37)=1,('Template 50 students'!D37),"") -> 86 | J36: =IF(COUNTA('Template 50 students'!E37,'Template 50 students'!D37)=2,('Template 50 students'!$D$55),"") -> 55.66 | K36: =IF(COUNTA('Template 50 students'!E37,'Template 50 students'!D37)=2,('Template 50 students'!$E$55),"") -> -0.06189458002 | N36: ='Template 100 students'!E37 -> -0.3361887192 | O36: =IF(COUNTA('Template 100 students'!D37)=1,('Template 100 students'!D37),"") -> 23 | P36: =IF(COUNTA('Template 100 students'!E37,'Template 100 students'!D37)=2,('Template 100 students'!$D$55),"") -> 22 | Q36: =IF(COUNTA('Template 100 students'!E37,'Template 100 students'!D37)=2,('Template 100 students'!$E$104),"") -> 0.01176660517
B37: 0.4 | C37: =C33 -> 25 | G37: =IF(COUNTA('Template 50 students'!B38)=1,('Template 50 students'!B38),"") -> Student36 | H37: =IF(COUNTA('Template 50 students'!E38)=1,('Template 50 students'!E38),"") -> 0.4700854178 | I37: =IF(COUNTA('Template 50 students'!D38)=1,('Template 50 students'!D38),"") -> 39 | J37: =IF(COUNTA('Template 50 students'!E38,'Template 50 students'!D38)=2,('Template 50 students'!$D$55),"") -> 55.66 | K37: =IF(COUNTA('Template 50 students'!E38,'Template 50 students'!D38)=2,('Template 50 students'!$E$55),"") -> -0.06189458002 | N37: ='Template 100 students'!E38 -> 0 | O37: =IF(COUNTA('Template 100 students'!D38)=1,('Template 100 students'!D38),"") -> 33 | P37: =IF(COUNTA('Template 100 students'!E38,'Template 100 students'!D38)=2,('Template 100 students'!$D$55),"") -> 22 | Q37: =IF(COUNTA('Template 100 students'!E38,'Template 100 students'!D38)=2,('Template 100 students'!$E$104),"") -> 0.01176660517
B38: 0.4 | C38: =C34 -> 88 | G38: =IF(COUNTA('Template 50 students'!B39)=1,('Template 50 students'!B39),"") -> Student37 | H38: =IF(COUNTA('Template 50 students'!E39)=1,('Template 50 students'!E39),"") -> -0.5484329875 | I38: =IF(COUNTA('Template 50 students'!D39)=1,('Template 50 students'!D39),"") -> 47 | J38: =IF(COUNTA('Template 50 students'!E39,'Template 50 students'!D39)=2,('Template 50 students'!$D$55),"") -> 55.66 | K38: =IF(COUNTA('Template 50 students'!E39,'Template 50 students'!D39)=2,('Template 50 students'!$E$55),"") -> -0.06189458002 | N38: ='Template 100 students'!E39 -> 2.185226675 | O38: =IF(COUNTA('Template 100 students'!D39)=1,('Template 100 students'!D39),"") -> 39 | P38: =IF(COUNTA('Template 100 students'!E39,'Template 100 students'!D39)=2,('Template 100 students'!$D$55),"") -> 22 | Q38: =IF(COUNTA('Template 100 students'!E39,'Template 100 students'!D39)=2,('Template 100 students'!$E$104),"") -> 0.01176660517
G39: =IF(COUNTA('Template 50 students'!B40)=1,('Template 50 students'!B40),"") -> Student38 | H39: =IF(COUNTA('Template 50 students'!E40)=1,('Template 50 students'!E40),"") -> 0.03917378482 | I39: =IF(COUNTA('Template 50 students'!D40)=1,('Template 50 students'!D40),"") -> 22 | J39: =IF(COUNTA('Template 50 students'!E40,'Template 50 students'!D40)=2,('Template 50 students'!$D$55),"") -> 55.66 | K39: =IF(COUNTA('Template 50 students'!E40,'Template 50 students'!D40)=2,('Template 50 students'!$E$55),"") -> -0.06189458002 | N39: ='Template 100 students'!E40 -> -0.840471798 | O39: =IF(COUNTA('Template 100 students'!D40)=1,('Template 100 students'!D40),"") -> 21 | P39: =IF(COUNTA('Template 100 students'!E40,'Template 100 students'!D40)=2,('Template 100 students'!$D$55),"") -> 22 | Q39: =IF(COUNTA('Template 100 students'!E40,'Template 100 students'!D40)=2,('Template 100 students'!$E$104),"") -> 0.01176660517
G40: =IF(COUNTA('Template 50 students'!B41)=1,('Template 50 students'!B41),"") -> Student39 | H40: =IF(COUNTA('Template 50 students'!E41)=1,('Template 50 students'!E41),"") -> -0.2742164937 | I40: =IF(COUNTA('Template 50 students'!D41)=1,('Template 50 students'!D41),"") -> 52 | J40: =IF(COUNTA('Template 50 students'!E41,'Template 50 students'!D41)=2,('Template 50 students'!$D$55),"") -> 55.66 | K40: =IF(COUNTA('Template 50 students'!E41,'Template 50 students'!D41)=2,('Template 50 students'!$E$55),"") -> -0.06189458002 | N40: ='Template 100 students'!E41 -> -0.5042830788 | O40: =IF(COUNTA('Template 100 students'!D41)=1,('Template 100 students'!D41),"") -> 33 | P40: =IF(COUNTA('Template 100 students'!E41,'Template 100 students'!D41)=2,('Template 100 students'!$D$55),"") -> 22 | Q40: =IF(COUNTA('Template 100 students'!E41,'Template 100 students'!D41)=2,('Template 100 students'!$E$104),"") -> 0.01176660517
G41: =IF(COUNTA('Template 50 students'!B42)=1,('Template 50 students'!B42),"") -> Student40 | H41: =IF(COUNTA('Template 50 students'!E42)=1,('Template 50 students'!E42),"") -> -1.096865975 | I41: =IF(COUNTA('Template 50 students'!D42)=1,('Template 50 students'!D42),"") -> 17 | J41: =IF(COUNTA('Template 50 students'!E42,'Template 50 students'!D42)=2,('Template 50 students'!$D$55),"") -> 55.66 | K41: =IF(COUNTA('Template 50 students'!E42,'Template 50 students'!D42)=2,('Template 50 students'!$E$55),"") -> -0.06189458002 | N41: ='Template 100 students'!E42 -> -0.6723774384 | O41: =IF(COUNTA('Template 100 students'!D42)=1,('Template 100 students'!D42),"") -> 31 | P41: =IF(COUNTA('Template 100 students'!E42,'Template 100 students'!D42)=2,('Template 100 students'!$D$55),"") -> 22 | Q41: =IF(COUNTA('Template 100 students'!E42,'Template 100 students'!D42)=2,('Template 100 students'!$E$104),"") -> 0.01176660517
G42: =IF(COUNTA('Template 50 students'!B43)=1,('Template 50 students'!B43),"") -> Student41 | H42: =IF(COUNTA('Template 50 students'!E43)=1,('Template 50 students'!E43),"") -> 2.350427089 | I42: =IF(COUNTA('Template 50 students'!D43)=1,('Template 50 students'!D43),"") -> 82 | J42: =IF(COUNTA('Template 50 students'!E43,'Template 50 students'!D43)=2,('Template 50 students'!$D$55),"") -> 55.66 | K42: =IF(COUNTA('Template 50 students'!E43,'Template 50 students'!D43)=2,('Template 50 students'!$E$55),"") -> -0.06189458002 | N42: ='Template 100 students'!E43 -> -2.353321034 | O42: =IF(COUNTA('Template 100 students'!D43)=1,('Template 100 students'!D43),"") -> 26 | P42: =IF(COUNTA('Template 100 students'!E43,'Template 100 students'!D43)=2,('Template 100 students'!$D$55),"") -> 22 | Q42: =IF(COUNTA('Template 100 students'!E43,'Template 100 students'!D43)=2,('Template 100 students'!$E$104),"") -> 0.01176660517
G43: =IF(COUNTA('Template 50 students'!B44)=1,('Template 50 students'!B44),"") -> Student42 | H43: =IF(COUNTA('Template 50 students'!E44)=1,('Template 50 students'!E44),"") -> 2.546296013 | I43: =IF(COUNTA('Template 50 students'!D44)=1,('Template 50 students'!D44),"") -> 90 | J43: =IF(COUNTA('Template 50 students'!E44,'Template 50 students'!D44)=2,('Template 50 students'!$D$55),"") -> 55.66 | K43: =IF(COUNTA('Template 50 students'!E44,'Template 50 students'!D44)=2,('Template 50 students'!$E$55),"") -> -0.06189458002 | N43: ='Template 100 students'!E44 -> 2.353321034 | O43: =IF(COUNTA('Template 100 students'!D44)=1,('Template 100 students'!D44),"") -> 35 | P43: =IF(COUNTA('Template 100 students'!E44,'Template 100 students'!D44)=2,('Template 100 students'!$D$55),"") -> 22 | Q43: =IF(COUNTA('Template 100 students'!E44,'Template 100 students'!D44)=2,('Template 100 students'!$E$104),"") -> 0.01176660517
G44: =IF(COUNTA('Template 50 students'!B45)=1,('Template 50 students'!B45),"") -> Student43 | H44: =IF(COUNTA('Template 50 students'!E45)=1,('Template 50 students'!E45),"") -> 0.5092592027 | I44: =IF(COUNTA('Template 50 students'!D45)=1,('Template 50 students'!D45),"") -> 81 | J44: =IF(COUNTA('Template 50 students'!E45,'Template 50 students'!D45)=2,('Template 50 students'!$D$55),"") -> 55.66 | K44: =IF(COUNTA('Template 50 students'!E45,'Template 50 students'!D45)=2,('Template 50 students'!$E$55),"") -> -0.06189458002 | N44: ='Template 100 students'!E45 -> -0.840471798 | O44: =IF(COUNTA('Template 100 students'!D45)=1,('Template 100 students'!D45),"") -> 20 | P44: =IF(COUNTA('Template 100 students'!E45,'Template 100 students'!D45)=2,('Template 100 students'!$D$55),"") -> 22 | Q44: =IF(COUNTA('Template 100 students'!E45,'Template 100 students'!D45)=2,('Template 100 students'!$E$104),"") -> 0.01176660517
G45: =IF(COUNTA('Template 50 students'!B46)=1,('Template 50 students'!B46),"") -> Student44 | H45: =IF(COUNTA('Template 50 students'!E46)=1,('Template 50 students'!E46),"") -> -0.5876067723 | I45: =IF(COUNTA('Template 50 students'!D46)=1,('Template 50 students'!D46),"") -> 61 | J45: =IF(COUNTA('Template 50 students'!E46,'Template 50 students'!D46)=2,('Template 50 students'!$D$55),"") -> 55.66 | K45: =IF(COUNTA('Template 50 students'!E46,'Template 50 students'!D46)=2,('Template 50 students'!$E$55),"") -> -0.06189458002 | N45: ='Template 100 students'!E46 -> 0.3361887192 | O45: =IF(COUNTA('Template 100 students'!D46)=1,('Template 100 students'!D46),"") -> 33 | P45: =IF(COUNTA('Template 100 students'!E46,'Template 100 students'!D46)=2,('Template 100 students'!$D$55),"") -> 22 | Q45: =IF(COUNTA('Template 100 students'!E46,'Template 100 students'!D46)=2,('Template 100 students'!$E$104),"") -> 0.01176660517
G46: =IF(COUNTA('Template 50 students'!B47)=1,('Template 50 students'!B47),"") -> Student45 | H46: =IF(COUNTA('Template 50 students'!E47)=1,('Template 50 students'!E47),"") -> 1.449430038 | I46: =IF(COUNTA('Template 50 students'!D47)=1,('Template 50 students'!D47),"") -> 63 | J46: =IF(COUNTA('Template 50 students'!E47,'Template 50 students'!D47)=2,('Template 50 students'!$D$55),"") -> 55.66 | K46: =IF(COUNTA('Template 50 students'!E47,'Template 50 students'!D47)=2,('Template 50 students'!$E$55),"") -> -0.06189458002 | N46: ='Template 100 students'!E47 -> -1.680943596 | O46: =IF(COUNTA('Template 100 students'!D47)=1,('Template 100 students'!D47),"") -> 23 | P46: =IF(COUNTA('Template 100 students'!E47,'Template 100 students'!D47)=2,('Template 100 students'!$D$55),"") -> 22 | Q46: =IF(COUNTA('Template 100 students'!E47,'Template 100 students'!D47)=2,('Template 100 students'!$E$104),"") -> 0.01176660517
G47: =IF(COUNTA('Template 50 students'!B48)=1,('Template 50 students'!B48),"") -> Student46 | H47: =IF(COUNTA('Template 50 students'!E48)=1,('Template 50 students'!E48),"") -> 0.9401708357 | I47: =IF(COUNTA('Template 50 students'!D48)=1,('Template 50 students'!D48),"") -> 81 | J47: =IF(COUNTA('Template 50 students'!E48,'Template 50 students'!D48)=2,('Template 50 students'!$D$55),"") -> 55.66 | K47: =IF(COUNTA('Template 50 students'!E48,'Template 50 students'!D48)=2,('Template 50 students'!$E$55),"") -> -0.06189458002 | N47: ='Template 100 students'!E48 -> 0.3361887192 | O47: =IF(COUNTA('Template 100 students'!D48)=1,('Template 100 students'!D48),"") -> 35 | P47: =IF(COUNTA('Template 100 students'!E48,'Template 100 students'!D48)=2,('Template 100 students'!$D$55),"") -> 22 | Q47: =IF(COUNTA('Template 100 students'!E48,'Template 100 students'!D48)=2,('Template 100 students'!$E$104),"") -> 0.01176660517
G48: =IF(COUNTA('Template 50 students'!B49)=1,('Template 50 students'!B49),"") -> Student47 | H48: =IF(COUNTA('Template 50 students'!E49)=1,('Template 50 students'!E49),"") -> -1.018518405 | I48: =IF(COUNTA('Template 50 students'!D49)=1,('Template 50 students'!D49),"") -> 14 | J48: =IF(COUNTA('Template 50 students'!E49,'Template 50 students'!D49)=2,('Template 50 students'!$D$55),"") -> 55.66 | K48: =IF(COUNTA('Template 50 students'!E49,'Template 50 students'!D49)=2,('Template 50 students'!$E$55),"") -> -0.06189458002 | N48: ='Template 100 students'!E49 -> 0.6723774384 | O48: =IF(COUNTA('Template 100 students'!D49)=1,('Template 100 students'!D49),"") -> 31 | P48: =IF(COUNTA('Template 100 students'!E49,'Template 100 students'!D49)=2,('Template 100 students'!$D$55),"") -> 22 | Q48: =IF(COUNTA('Template 100 students'!E49,'Template 100 students'!D49)=2,('Template 100 students'!$E$104),"") -> 0.01176660517
G49: =IF(COUNTA('Template 50 students'!B50)=1,('Template 50 students'!B50),"") -> Student48 | H49: =IF(COUNTA('Template 50 students'!E50)=1,('Template 50 students'!E50),"") -> 0.5876067723 | I49: =IF(COUNTA('Template 50 students'!D50)=1,('Template 50 students'!D50),"") -> 90 | J49: =IF(COUNTA('Template 50 students'!E50,'Template 50 students'!D50)=2,('Template 50 students'!$D$55),"") -> 55.66 | K49: =IF(COUNTA('Template 50 students'!E50,'Template 50 students'!D50)=2,('Template 50 students'!$E$55),"") -> -0.06189458002 | N49: ='Template 100 students'!E50 -> -1.512849236 | O49: =IF(COUNTA('Template 100 students'!D50)=1,('Template 100 students'!D50),"") -> 25 | P49: =IF(COUNTA('Template 100 students'!E50,'Template 100 students'!D50)=2,('Template 100 students'!$D$55),"") -> 22 | Q49: =IF(COUNTA('Template 100 students'!E50,'Template 100 students'!D50)=2,('Template 100 students'!$E$104),"") -> 0.01176660517
G50: =IF(COUNTA('Template 50 students'!B51)=1,('Template 50 students'!B51),"") -> Student49 | H50: =IF(COUNTA('Template 50 students'!E51)=1,('Template 50 students'!E51),"") -> -0.07834756964 | I50: =IF(COUNTA('Template 50 students'!D51)=1,('Template 50 students'!D51),"") -> 38 | J50: =IF(COUNTA('Template 50 students'!E51,'Template 50 students'!D51)=2,('Template 50 students'!$D$55),"") -> 55.66 | K50: =IF(COUNTA('Template 50 students'!E51,'Template 50 students'!D51)=2,('Template 50 students'!$E$55),"") -> -0.06189458002 | N50: ='Template 100 students'!E51 -> -2.185226675 | O50: =IF(COUNTA('Template 100 students'!D51)=1,('Template 100 students'!D51),"") -> 27 | P50: =IF(COUNTA('Template 100 students'!E51,'Template 100 students'!D51)=2,('Template 100 students'!$D$55),"") -> 22 | Q50: =IF(COUNTA('Template 100 students'!E51,'Template 100 students'!D51)=2,('Template 100 students'!$E$104),"") -> 0.01176660517
G51: =IF(COUNTA('Template 50 students'!B52)=1,('Template 50 students'!B52),"") -> Student50 | H51: =IF(COUNTA('Template 50 students'!E52)=1,('Template 50 students'!E52),"") -> -0.03917378482 | I51: =IF(COUNTA('Template 50 students'!D52)=1,('Template 50 students'!D52),"") -> 39 | J51: =IF(COUNTA('Template 50 students'!E52,'Template 50 students'!D52)=2,('Template 50 students'!$D$55),"") -> 55.66 | K51: =IF(COUNTA('Template 50 students'!E52,'Template 50 students'!D52)=2,('Template 50 students'!$E$55),"") -> -0.06189458002 | N51: ='Template 100 students'!E52 -> -0.5042830788 | O51: =IF(COUNTA('Template 100 students'!D52)=1,('Template 100 students'!D52),"") -> 21 | P51: =IF(COUNTA('Template 100 students'!E52,'Template 100 students'!D52)=2,('Template 100 students'!$D$55),"") -> 22 | Q51: =IF(COUNTA('Template 100 students'!E52,'Template 100 students'!D52)=2,('Template 100 students'!$E$104),"") -> 0.01176660517
N52: ='Template 100 students'!E53 -> -3.025698473 | O52: =IF(COUNTA('Template 100 students'!D53)=1,('Template 100 students'!D53),"") -> 22 | P52: =IF(COUNTA('Template 100 students'!E53,'Template 100 students'!D53)=2,('Template 100 students'!$D$55),"") -> 22 | Q52: =IF(COUNTA('Template 100 students'!E53,'Template 100 students'!D53)=2,('Template 100 students'!$E$104),"") -> 0.01176660517
G53: Min | H53: =K2 -> -0.06189458002 | I53: =MIN(I2:I51)-10 -> 1 | K53: =COUNT(Table13[Effect size]) -> 50 | N53: ='Template 100 students'!E54 -> -2.353321034 | O53: =IF(COUNTA('Template 100 students'!D54)=1,('Template 100 students'!D54),"") -> 25 | P53: =IF(COUNTA('Template 100 students'!E54,'Template 100 students'!D54)=2,('Template 100 students'!$D$55),"") -> 22 | Q53: =IF(COUNTA('Template 100 students'!E54,'Template 100 students'!D54)=2,('Template 100 students'!$E$104),"") -> 0.01176660517
G54: Max | H54: =K2 -> -0.06189458002 | I54: =MAX(I2:I51)+10 -> 110 | N54: ='Template 100 students'!E55 -> -1.512849236 | O54: =IF(COUNTA('Template 100 students'!D55)=1,('Template 100 students'!D55),"") -> 22 | P54: =IF(COUNTA('Template 100 students'!E55,'Template 100 students'!D55)=2,('Template 100 students'!$D$55),"") -> 22 | Q54: =IF(COUNTA('Template 100 students'!E55,'Template 100 students'!D55)=2,('Template 100 students'!$E$104),"") -> 0.01176660517
H55: =MIN(H2:H51) -> -2.898860077 | I55: ='Template 50 students'!$D$55 -> 55.66 | N55: ='Template 100 students'!E56 -> -1.512849236 | O55: =IF(COUNTA('Template 100 students'!D56)=1,('Template 100 students'!D56),"") -> 24 | P55: =IF(COUNTA('Template 100 students'!E56,'Template 100 students'!D56)=2,('Template 100 students'!$D$55),"") -> 22 | Q55: =IF(COUNTA('Template 100 students'!E56,'Template 100 students'!D56)=2,('Template 100 students'!$E$104),"") -> 0.01176660517
H56: =MAX(H2:H51) -> 2.781338722 | I56: ='Template 50 students'!$D$55 -> 55.66 | N56: ='Template 100 students'!E57 -> 1.344754877 | O56: =IF(COUNTA('Template 100 students'!D57)=1,('Template 100 students'!D57),"") -> 35 | P56: =IF(COUNTA('Template 100 students'!E57,'Template 100 students'!D57)=2,('Template 100 students'!$D$55),"") -> 22 | Q56: =IF(COUNTA('Template 100 students'!E57,'Template 100 students'!D57)=2,('Template 100 students'!$E$104),"") -> 0.01176660517
H57: 0.4 | I57: =I53 -> 1 | N57: ='Template 100 students'!E58 -> -2.857604113 | O57: =IF(COUNTA('Template 100 students'!D58)=1,('Template 100 students'!D58),"") -> 23 | P57: =IF(COUNTA('Template 100 students'!E58,'Template 100 students'!D58)=2,('Template 100 students'!$D$55),"") -> 22 | Q57: =IF(COUNTA('Template 100 students'!E58,'Template 100 students'!D58)=2,('Template 100 students'!$E$104),"") -> 0.01176660517
H58: 0.4 | I58: =I54 -> 110 | N58: ='Template 100 students'!E59 -> 0.5042830788 | O58: =IF(COUNTA('Template 100 students'!D59)=1,('Template 100 students'!D59),"") -> 34 | P58: =IF(COUNTA('Template 100 students'!E59,'Template 100 students'!D59)=2,('Template 100 students'!$D$55),"") -> 22 | Q58: =IF(COUNTA('Template 100 students'!E59,'Template 100 students'!D59)=2,('Template 100 students'!$E$104),"") -> 0.01176660517
N59: ='Template 100 students'!E60 -> 1.849037956 | O59: =IF(COUNTA('Template 100 students'!D60)=1,('Template 100 students'!D60),"") -> 39 | P59: =IF(COUNTA('Template 100 students'!E60,'Template 100 students'!D60)=2,('Template 100 students'!$D$55),"") -> 22 | Q59: =IF(COUNTA('Template 100 students'!E60,'Template 100 students'!D60)=2,('Template 100 students'!$E$104),"") -> 0.01176660517
N60: ='Template 100 students'!E61 -> 0 | O60: =IF(COUNTA('Template 100 students'!D61)=1,('Template 100 students'!D61),"") -> 24 | P60: =IF(COUNTA('Template 100 students'!E61,'Template 100 students'!D61)=2,('Template 100 students'!$D$55),"") -> 22 | Q60: =IF(COUNTA('Template 100 students'!E61,'Template 100 students'!D61)=2,('Template 100 students'!$E$104),"") -> 0.01176660517
N61: ='Template 100 students'!E62 -> -1.849037956 | O61: =IF(COUNTA('Template 100 students'!D62)=1,('Template 100 students'!D62),"") -> 28 | P61: =IF(COUNTA('Template 100 students'!E62,'Template 100 students'!D62)=2,('Template 100 students'!$D$55),"") -> 22 | Q61: =IF(COUNTA('Template 100 students'!E62,'Template 100 students'!D62)=2,('Template 100 students'!$E$104),"") -> 0.01176660517
N62: ='Template 100 students'!E63 -> -0.1680943596 | O62: =IF(COUNTA('Template 100 students'!D63)=1,('Template 100 students'!D63),"") -> 32 | P62: =IF(COUNTA('Template 100 students'!E63,'Template 100 students'!D63)=2,('Template 100 students'!$D$55),"") -> 22 | Q62: =IF(COUNTA('Template 100 students'!E63,'Template 100 students'!D63)=2,('Template 100 students'!$E$104),"") -> 0.01176660517
N63: ='Template 100 students'!E64 -> 1.008566158 | O63: =IF(COUNTA('Template 100 students'!D64)=1,('Template 100 students'!D64),"") -> 39 | P63: =IF(COUNTA('Template 100 students'!E64,'Template 100 students'!D64)=2,('Template 100 students'!$D$55),"") -> 22 | Q63: =IF(COUNTA('Template 100 students'!E64,'Template 100 students'!D64)=2,('Template 100 students'!$E$104),"") -> 0.01176660517
N64: ='Template 100 students'!E65 -> -2.521415394 | O64: =IF(COUNTA('Template 100 students'!D65)=1,('Template 100 students'!D65),"") -> 25 | P64: =IF(COUNTA('Template 100 students'!E65,'Template 100 students'!D65)=2,('Template 100 students'!$D$55),"") -> 22 | Q64: =IF(COUNTA('Template 100 students'!E65,'Template 100 students'!D65)=2,('Template 100 students'!$E$104),"") -> 0.01176660517
N65: ='Template 100 students'!E66 -> -1.849037956 | O65: =IF(COUNTA('Template 100 students'!D66)=1,('Template 100 students'!D66),"") -> 25 | P65: =IF(COUNTA('Template 100 students'!E66,'Template 100 students'!D66)=2,('Template 100 students'!$D$55),"") -> 22 | Q65: =IF(COUNTA('Template 100 students'!E66,'Template 100 students'!D66)=2,('Template 100 students'!$E$104),"") -> 0.01176660517
N66: ='Template 100 students'!E67 -> 1.680943596 | O66: =IF(COUNTA('Template 100 students'!D67)=1,('Template 100 students'!D67),"") -> 30 | P66: =IF(COUNTA('Template 100 students'!E67,'Template 100 students'!D67)=2,('Template 100 students'!$D$55),"") -> 22 | Q66: =IF(COUNTA('Template 100 students'!E67,'Template 100 students'!D67)=2,('Template 100 students'!$E$104),"") -> 0.01176660517
N67: ='Template 100 students'!E68 -> 0.3361887192 | O67: =IF(COUNTA('Template 100 students'!D68)=1,('Template 100 students'!D68),"") -> 31 | P67: =IF(COUNTA('Template 100 students'!E68,'Template 100 students'!D68)=2,('Template 100 students'!$D$55),"") -> 22 | Q67: =IF(COUNTA('Template 100 students'!E68,'Template 100 students'!D68)=2,('Template 100 students'!$E$104),"") -> 0.01176660517
N68: ='Template 100 students'!E69 -> 0.5042830788 | O68: =IF(COUNTA('Template 100 students'!D69)=1,('Template 100 students'!D69),"") -> 31 | P68: =IF(COUNTA('Template 100 students'!E69,'Template 100 students'!D69)=2,('Template 100 students'!$D$55),"") -> 22 | Q68: =IF(COUNTA('Template 100 students'!E69,'Template 100 students'!D69)=2,('Template 100 students'!$E$104),"") -> 0.01176660517
N69: ='Template 100 students'!E70 -> -1.176660517 | O69: =IF(COUNTA('Template 100 students'!D70)=1,('Template 100 students'!D70),"") -> 31 | P69: =IF(COUNTA('Template 100 students'!E70,'Template 100 students'!D70)=2,('Template 100 students'!$D$55),"") -> 22 | Q69: =IF(COUNTA('Template 100 students'!E70,'Template 100 students'!D70)=2,('Template 100 students'!$E$104),"") -> 0.01176660517
N70: ='Template 100 students'!E71 -> -1.176660517 | O70: =IF(COUNTA('Template 100 students'!D71)=1,('Template 100 students'!D71),"") -> 30 | P70: =IF(COUNTA('Template 100 students'!E71,'Template 100 students'!D71)=2,('Template 100 students'!$D$55),"") -> 22 | Q70: =IF(COUNTA('Template 100 students'!E71,'Template 100 students'!D71)=2,('Template 100 students'!$E$104),"") -> 0.01176660517
N71: ='Template 100 students'!E72 -> 1.512849236 | O71: =IF(COUNTA('Template 100 students'!D72)=1,('Template 100 students'!D72),"") -> 35 | P71: =IF(COUNTA('Template 100 students'!E72,'Template 100 students'!D72)=2,('Template 100 students'!$D$55),"") -> 22 | Q71: =IF(COUNTA('Template 100 students'!E72,'Template 100 students'!D72)=2,('Template 100 students'!$E$104),"") -> 0.01176660517
N72: ='Template 100 students'!E73 -> 2.185226675 | O72: =IF(COUNTA('Template 100 students'!D73)=1,('Template 100 students'!D73),"") -> 34 | P72: =IF(COUNTA('Template 100 students'!E73,'Template 100 students'!D73)=2,('Template 100 students'!$D$55),"") -> 22 | Q72: =IF(COUNTA('Template 100 students'!E73,'Template 100 students'!D73)=2,('Template 100 students'!$E$104),"") -> 0.01176660517
N73: ='Template 100 students'!E74 -> -1.849037956 | O73: =IF(COUNTA('Template 100 students'!D74)=1,('Template 100 students'!D74),"") -> 28 | P73: =IF(COUNTA('Template 100 students'!E74,'Template 100 students'!D74)=2,('Template 100 students'!$D$55),"") -> 22 | Q73: =IF(COUNTA('Template 100 students'!E74,'Template 100 students'!D74)=2,('Template 100 students'!$E$104),"") -> 0.01176660517
N74: ='Template 100 students'!E75 -> 1.512849236 | O74: =IF(COUNTA('Template 100 students'!D75)=1,('Template 100 students'!D75),"") -> 31 | P74: =IF(COUNTA('Template 100 students'!E75,'Template 100 students'!D75)=2,('Template 100 students'!$D$55),"") -> 22 | Q74: =IF(COUNTA('Template 100 students'!E75,'Template 100 students'!D75)=2,('Template 100 students'!$E$104),"") -> 0.01176660517
N75: ='Template 100 students'!E76 -> 1.680943596 | O75: =IF(COUNTA('Template 100 students'!D76)=1,('Template 100 students'!D76),"") -> 36 | P75: =IF(COUNTA('Template 100 students'!E76,'Template 100 students'!D76)=2,('Template 100 students'!$D$55),"") -> 22 | Q75: =IF(COUNTA('Template 100 students'!E76,'Template 100 students'!D76)=2,('Template 100 students'!$E$104),"") -> 0.01176660517
N76: ='Template 100 students'!E77 -> 1.008566158 | O76: =IF(COUNTA('Template 100 students'!D77)=1,('Template 100 students'!D77),"") -> 29 | P76: =IF(COUNTA('Template 100 students'!E77,'Template 100 students'!D77)=2,('Template 100 students'!$D$55),"") -> 22 | Q76: =IF(COUNTA('Template 100 students'!E77,'Template 100 students'!D77)=2,('Template 100 students'!$E$104),"") -> 0.01176660517
N77: ='Template 100 students'!E78 -> 0.840471798 | O77: =IF(COUNTA('Template 100 students'!D78)=1,('Template 100 students'!D78),"") -> 36 | P77: =IF(COUNTA('Template 100 students'!E78,'Template 100 students'!D78)=2,('Template 100 students'!$D$55),"") -> 22 | Q77: =IF(COUNTA('Template 100 students'!E78,'Template 100 students'!D78)=2,('Template 100 students'!$E$104),"") -> 0.01176660517
N78: ='Template 100 students'!E79 -> 2.017132315 | O78: =IF(COUNTA('Template 100 students'!D79)=1,('Template 100 students'!D79),"") -> 32 | P78: =IF(COUNTA('Template 100 students'!E79,'Template 100 students'!D79)=2,('Template 100 students'!$D$55),"") -> 22 | Q78: =IF(COUNTA('Template 100 students'!E79,'Template 100 students'!D79)=2,('Template 100 students'!$E$104),"") -> 0.01176660517
N79: ='Template 100 students'!E80 -> 1.344754877 | O79: =IF(COUNTA('Template 100 students'!D80)=1,('Template 100 students'!D80),"") -> 40 | P79: =IF(COUNTA('Template 100 students'!E80,'Template 100 students'!D80)=2,('Template 100 students'!$D$55),"") -> 22 | Q79: =IF(COUNTA('Template 100 students'!E80,'Template 100 students'!D80)=2,('Template 100 students'!$E$104),"") -> 0.01176660517
N80: ='Template 100 students'!E81 -> 0 | O80: =IF(COUNTA('Template 100 students'!D81)=1,('Template 100 students'!D81),"") -> 38 | P80: =IF(COUNTA('Template 100 students'!E81,'Template 100 students'!D81)=2,('Template 100 students'!$D$55),"") -> 22 | Q80: =IF(COUNTA('Template 100 students'!E81,'Template 100 students'!D81)=2,('Template 100 students'!$E$104),"") -> 0.01176660517
N81: ='Template 100 students'!E82 -> 2.185226675 | O81: =IF(COUNTA('Template 100 students'!D82)=1,('Template 100 students'!D82),"") -> 40 | P81: =IF(COUNTA('Template 100 students'!E82,'Template 100 students'!D82)=2,('Template 100 students'!$D$55),"") -> 22 | Q81: =IF(COUNTA('Template 100 students'!E82,'Template 100 students'!D82)=2,('Template 100 students'!$E$104),"") -> 0.01176660517
N82: ='Template 100 students'!E83 -> -0.840471798 | O82: =IF(COUNTA('Template 100 students'!D83)=1,('Template 100 students'!D83),"") -> 26 | P82: =IF(COUNTA('Template 100 students'!E83,'Template 100 students'!D83)=2,('Template 100 students'!$D$55),"") -> 22 | Q82: =IF(COUNTA('Template 100 students'!E83,'Template 100 students'!D83)=2,('Template 100 students'!$E$104),"") -> 0.01176660517
N83: ='Template 100 students'!E84 -> -0.3361887192 | O83: =IF(COUNTA('Template 100 students'!D84)=1,('Template 100 students'!D84),"") -> 28 | P83: =IF(COUNTA('Template 100 students'!E84,'Template 100 students'!D84)=2,('Template 100 students'!$D$55),"") -> 22 | Q83: =IF(COUNTA('Template 100 students'!E84,'Template 100 students'!D84)=2,('Template 100 students'!$E$104),"") -> 0.01176660517
N84: ='Template 100 students'!E85 -> 1.680943596 | O84: =IF(COUNTA('Template 100 students'!D85)=1,('Template 100 students'!D85),"") -> 37 | P84: =IF(COUNTA('Template 100 students'!E85,'Template 100 students'!D85)=2,('Template 100 students'!$D$55),"") -> 22 | Q84: =IF(COUNTA('Template 100 students'!E85,'Template 100 students'!D85)=2,('Template 100 students'!$E$104),"") -> 0.01176660517
N85: ='Template 100 students'!E86 -> -0.1680943596 | O85: =IF(COUNTA('Template 100 students'!D86)=1,('Template 100 students'!D86),"") -> 30 | P85: =IF(COUNTA('Template 100 students'!E86,'Template 100 students'!D86)=2,('Template 100 students'!$D$55),"") -> 22 | Q85: =IF(COUNTA('Template 100 students'!E86,'Template 100 students'!D86)=2,('Template 100 students'!$E$104),"") -> 0.01176660517
N86: ='Template 100 students'!E87 -> 2.185226675 | O86: =IF(COUNTA('Template 100 students'!D87)=1,('Template 100 students'!D87),"") -> 37 | P86: =IF(COUNTA('Template 100 students'!E87,'Template 100 students'!D87)=2,('Template 100 students'!$D$55),"") -> 22 | Q86: =IF(COUNTA('Template 100 students'!E87,'Template 100 students'!D87)=2,('Template 100 students'!$E$104),"") -> 0.01176660517
N87: ='Template 100 students'!E88 -> 0 | O87: =IF(COUNTA('Template 100 students'!D88)=1,('Template 100 students'!D88),"") -> 21 | P87: =IF(COUNTA('Template 100 students'!E88,'Template 100 students'!D88)=2,('Template 100 students'!$D$55),"") -> 22 | Q87: =IF(COUNTA('Template 100 students'!E88,'Template 100 students'!D88)=2,('Template 100 students'!$E$104),"") -> 0.01176660517
N88: ='Template 100 students'!E89 -> 0 | O88: =IF(COUNTA('Template 100 students'!D89)=1,('Template 100 students'!D89),"") -> 22 | P88: =IF(COUNTA('Template 100 students'!E89,'Template 100 students'!D89)=2,('Template 100 students'!$D$55),"") -> 22 | Q88: =IF(COUNTA('Template 100 students'!E89,'Template 100 students'!D89)=2,('Template 100 students'!$E$104),"") -> 0.01176660517
N89: ='Template 100 students'!E90 -> -1.680943596 | O89: =IF(COUNTA('Template 100 students'!D90)=1,('Template 100 students'!D90),"") -> 30 | P89: =IF(COUNTA('Template 100 students'!E90,'Template 100 students'!D90)=2,('Template 100 students'!$D$55),"") -> 22 | Q89: =IF(COUNTA('Template 100 students'!E90,'Template 100 students'!D90)=2,('Template 100 students'!$E$104),"") -> 0.01176660517
N90: ='Template 100 students'!E91 -> -0.1680943596 | O90: =IF(COUNTA('Template 100 students'!D91)=1,('Template 100 students'!D91),"") -> 39 | P90: =IF(COUNTA('Template 100 students'!E91,'Template 100 students'!D91)=2,('Template 100 students'!$D$55),"") -> 22 | Q90: =IF(COUNTA('Template 100 students'!E91,'Template 100 students'!D91)=2,('Template 100 students'!$E$104),"") -> 0.01176660517
N91: ='Template 100 students'!E92 -> 0.5042830788 | O91: =IF(COUNTA('Template 100 students'!D92)=1,('Template 100 students'!D92),"") -> 32 | P91: =IF(COUNTA('Template 100 students'!E92,'Template 100 students'!D92)=2,('Template 100 students'!$D$55),"") -> 22 | Q91: =IF(COUNTA('Template 100 students'!E92,'Template 100 students'!D92)=2,('Template 100 students'!$E$104),"") -> 0.01176660517
N92: ='Template 100 students'!E93 -> -0.3361887192 | O92: =IF(COUNTA('Template 100 students'!D93)=1,('Template 100 students'!D93),"") -> 32 | P92: =IF(COUNTA('Template 100 students'!E93,'Template 100 students'!D93)=2,('Template 100 students'!$D$55),"") -> 22 | Q92: =IF(COUNTA('Template 100 students'!E93,'Template 100 students'!D93)=2,('Template 100 students'!$E$104),"") -> 0.01176660517
N93: ='Template 100 students'!E94 -> 0.6723774384 | O93: =IF(COUNTA('Template 100 students'!D94)=1,('Template 100 students'!D94),"") -> 26 | P93: =IF(COUNTA('Template 100 students'!E94,'Template 100 students'!D94)=2,('Template 100 students'!$D$55),"") -> 22 | Q93: =IF(COUNTA('Template 100 students'!E94,'Template 100 students'!D94)=2,('Template 100 students'!$E$104),"") -> 0.01176660517
N94: ='Template 100 students'!E95 -> 0.6723774384 | O94: =IF(COUNTA('Template 100 students'!D95)=1,('Template 100 students'!D95),"") -> 36 | P94: =IF(COUNTA('Template 100 students'!E95,'Template 100 students'!D95)=2,('Template 100 students'!$D$55),"") -> 22 | Q94: =IF(COUNTA('Template 100 students'!E95,'Template 100 students'!D95)=2,('Template 100 students'!$E$104),"") -> 0.01176660517
N95: ='Template 100 students'!E96 -> 2.689509754 | O95: =IF(COUNTA('Template 100 students'!D96)=1,('Template 100 students'!D96),"") -> 37 | P95: =IF(COUNTA('Template 100 students'!E96,'Template 100 students'!D96)=2,('Template 100 students'!$D$55),"") -> 22 | Q95: =IF(COUNTA('Template 100 students'!E96,'Template 100 students'!D96)=2,('Template 100 students'!$E$104),"") -> 0.01176660517
N96: ='Template 100 students'!E97 -> -0.1680943596 | O96: =IF(COUNTA('Template 100 students'!D97)=1,('Template 100 students'!D97),"") -> 20 | P96: =IF(COUNTA('Template 100 students'!E97,'Template 100 students'!D97)=2,('Template 100 students'!$D$55),"") -> 22 | Q96: =IF(COUNTA('Template 100 students'!E97,'Template 100 students'!D97)=2,('Template 100 students'!$E$104),"") -> 0.01176660517
N97: ='Template 100 students'!E98 -> -1.176660517 | O97: =IF(COUNTA('Template 100 students'!D98)=1,('Template 100 students'!D98),"") -> 22 | P97: =IF(COUNTA('Template 100 students'!E98,'Template 100 students'!D98)=2,('Template 100 students'!$D$55),"") -> 22 | Q97: =IF(COUNTA('Template 100 students'!E98,'Template 100 students'!D98)=2,('Template 100 students'!$E$104),"") -> 0.01176660517
N98: ='Template 100 students'!E99 -> 1.512849236 | O98: =IF(COUNTA('Template 100 students'!D99)=1,('Template 100 students'!D99),"") -> 37 | P98: =IF(COUNTA('Template 100 students'!E99,'Template 100 students'!D99)=2,('Template 100 students'!$D$55),"") -> 22 | Q98: =IF(COUNTA('Template 100 students'!E99,'Template 100 students'!D99)=2,('Template 100 students'!$E$104),"") -> 0.01176660517
N99: ='Template 100 students'!E100 -> -2.353321034 | O99: =IF(COUNTA('Template 100 students'!D100)=1,('Template 100 students'!D100),"") -> 22 | P99: =IF(COUNTA('Template 100 students'!E100,'Template 100 students'!D100)=2,('Template 100 students'!$D$55),"") -> 22 | Q99: =IF(COUNTA('Template 100 students'!E100,'Template 100 students'!D100)=2,('Template 100 students'!$E$104),"") -> 0.01176660517
N100: ='Template 100 students'!E101 -> 0.840471798 | O100: =IF(COUNTA('Template 100 students'!D101)=1,('Template 100 students'!D101),"") -> 37 | P100: =IF(COUNTA('Template 100 students'!E101,'Template 100 students'!D101)=2,('Template 100 students'!$D$55),"") -> 22 | Q100: =IF(COUNTA('Template 100 students'!E101,'Template 100 students'!D101)=2,('Template 100 students'!$E$104),"") -> 0.01176660517
N101: ='Template 100 students'!E102 -> 1.344754877 | O101: =IF(COUNTA('Template 100 students'!D102)=1,('Template 100 students'!D102),"") -> 38 | P101: =IF(COUNTA('Template 100 students'!E102,'Template 100 students'!D102)=2,('Template 100 students'!$D$55),"") -> 22 | Q101: =IF(COUNTA('Template 100 students'!E102,'Template 100 students'!D102)=2,('Template 100 students'!$E$104),"") -> 0.01176660517
O103: Min | P103: =Q2 -> 0.01176660517 | Q103: =MIN(O2:O101)-10 -> 10 | R103: =COUNT(Table134[Effect size]) -> 100
O104: Max | P104: =Q2 -> 0.01176660517 | Q104: =MAX(O2:O101)+10 -> 50
P105: =MIN(N2:N101) -> -3.025698473 | Q105: ='Template 100 students'!$D$104 -> 29.66
P106: =MAX(N2:N101) -> 2.857604113 | Q106: ='Template 100 students'!$D$104 -> 29.66
P107: 0.4 | Q107: =Q103 -> 10
P108: 0.4 | Q108: =Q104 -> 50
